Workbook

Sheet Sheet1
A1: i | B1: V | C1: psir | D1: psii | E1: psi^2 | F1: Ar | G1: Ai | H1: br | I1: bi | J1: gammar | K1: gammai | L1: betar | M1: betai | N1: chir | O1: chii | P1: npsir | Q1: iterated psii | R1: iterated psi^2 | T1: original psir | U1: original psii | W1: x
A2: 1 | B2: 0 | C2: 0 | D2: 0 | E2: =C2^2+D2^2 -> 0 | F2: =-2-0.2626*B2/9 -> -2 | G2: =3.457/2.7 -> 1.28037037 | H2: =-2*G2*D2 -> 0 | I2: =2*G2*C2 -> 0 | J2: =(-F2-J3)/((F2+J3)^2+(G2+K3)^2) -> 0.3164332575 | K2: =(G2+K3)/((F2+J3)^2+(G2+K3)^2) -> 0.2963512865 | L2: =J3*(L3-H3)-K3*(M3-I3) -> 1.209344327e-233 | M2: =J3*(M3-I3)+K3*(L3-H3) -> -5.025282045e-234 | N2: 0 | O2: 0 | P2: 0 | Q2: 0 | R2: 0 | T2: 0 | U2: 0 | W2: =A2/3 -> 0.3333333333 | X2: energy | Y2: 3 | Z2: =SQRT(0.263*Y2) -> 0.8882567196
A3: =A2+1 -> 2 | B3: 0 | C3: 0 | D3: 0 | E3: =C3^2+D3^2 -> 0 | F3: =-2-0.2626*B3/9 -> -2 | G3: =3.457/2.7 -> 1.28037037 | H3: =-2*G3*D3 -> 0 | I3: =2*G3*C3 -> 0 | J3: =(-F3-J4)/((F3+J4)^2+(G3+K4)^2) -> 0.3164332575 | K3: =(G3+K4)/((F3+J4)^2+(G3+K4)^2) -> 0.2963512865 | L3: =J4*(L4-H4)-K4*(M4-I4) -> 1.243664786e-233 | M3: =J4*(M4-I4)+K4*(L4-H4) -> -2.752839164e-233 | N3: =J3*N2-K3*O2+L2 -> 1.209344327e-233 | O3: =J3*O2+K3*N2+M2 -> -5.025282045e-234 | P3: =N3-C3 -> 1.209344327e-233 | Q3: =O3-D3 -> -5.025282045e-234 | R3: =P3^2+Q3^2 -> 0 | T3: =(EXP(-(($A3-$Z$4)^2/$Z$3))*COS($Z$2*$A3/3)) -> 0 | U3: =(EXP(-(($A3-$Z$4)^2/$Z$3))*SIN($Z$2*$A3/3)) -> 0 | W3: =A3/3 -> 0.6666666667 | X3: width | Y3: 20 | Z3: =2*Y3^2 -> 800
A4: =A3+1 -> 3 | B4: 0 | C4: 0 | D4: 0 | E4: 0 | F4: -2 | G4: 1.28037037 | H4: 0 | I4: 0 | J4: 0.3164332575 | K4: 0.2963512865 | L4: -2.246668454e-233 | M4: -6.595501666e-233 | N4: =J4*N3-K4*O3+L3 -> 1.775266431e-233 | O4: =J4*O3+K4*N3+M3 -> -2.553465053e-233 | P4: =N4-C4 -> 1.775266431e-233 | Q4: =O4-D4 -> -2.553465053e-233 | R4: =P4^2+Q4^2 -> 0 | T4: =(EXP(-(($A4-$Z$4)^2/$Z$3))*COS($Z$2*$A4/3)) -> 0 | U4: =(EXP(-(($A4-$Z$4)^2/$Z$3))*SIN($Z$2*$A4/3)) -> 0 | W4: =A4/3 -> 1 | X4: position | Y4: 258 | Z4: =Y4*3 -> 774
A5: 4 | B5: 0 | C5: 0 | D5: 0 | E5: 0 | F5: -2 | G5: 1.28037037 | H5: 0 | I5: 0 | J5: 0.3164332575 | K5: 0.2963512865 | L5: -1.418168661e-232 | M5: -7.561596448e-233 | N5: -9.281924608e-234 | O5: -6.87740044e-233 | P5: -9.281924608e-234 | Q5: -6.87740044e-233 | R5: 0 | T5: 0 | U5: 0 | W5: 1.333333333 | X5: step | Y5: 5 | Z5: =Y5-2 -> 3
A6: 5 | B6: 0 | C6: 0 | D6: 0 | E6: 0 | F6: -2 | G6: 1.28037037 | H6: 0 | I6: 0 | J6: 0.3164332575 | K6: 0.2963512865 | L6: -3.57983488e-232 | M6: 9.630120102e-233 | N6: -1.24372711e-232 | O6: -1.00129057e-232 | P6: -1.24372711e-232 | Q6: -1.00129057e-232 | R6: 0 | T6: 0 | U6: 0 | W6: 1.666666667 | X6: from sheet 2 sliders
A7: 6 | B7: 0 | C7: 0 | D7: 0 | E7: 0 | F7: -2 | G7: 1.28037037 | H7: 0 | I7: 0 | J7: 0.3164332575 | K7: 0.2963512865 | L7: -4.508489056e-232 | M7: 7.265698177e-232 | N7: -3.676657753e-232 | O7: 2.775902442e-233 | P7: -3.676657753e-232 | Q7: 2.775902442e-233 | R7: 0 | T7: 0 | U7: 0 | W7: 2 | X7: Δt = 0.3e-16s
A8: 7 | B8: 0 | C8: 0 | D8: 0 | E8: 0 | F8: -2 | G8: 1.28037037 | H8: 0 | I8: 0 | J8: 0.3164332575 | K8: 0.2963512865 | L8: 3.865641434e-232 | M8: 1.934092015e-231 | N8: -5.754170071e-232 | O8: 6.263954707e-232 | P8: -5.754170071e-232 | Q8: 6.263954707e-232 | R8: 0 | T8: 0 | U8: 0 | W8: 2.333333333 | X8: Δx = (1/3) Å
A9: 8 | B9: 0 | C9: 0 | D9: 0 | E9: 0 | F9: -2 | G9: 1.28037037 | H9: 0 | I9: 0 | J9: 0.3164332575 | K9: 0.2963512865 | L9: 3.700331302e-231 | M9: 2.646668936e-231 | N9: 1.884996186e-233 | O9: 1.961778804e-231 | P9: 1.884996186e-233 | Q9: 1.961778804e-231 | R9: 0 | T9: 0 | U9: 0 | W9: 2.666666667
A10: 9 | B10: 0 | C10: 0 | D10: 0 | E10: 0 | F10: -2 | G10: 1.28037037 | H10: 0 | I10: 0 | J10: 0.3164332575 | K10: 0.2963512865 | L10: 1.040281495e-230 | M10: -1.378548702e-231 | N10: 3.124920384e-231 | O10: 3.273027204e-231 | P10: 3.124920384e-231 | Q10: 3.273027204e-231 | R10: 0 | T10: 0 | U10: 0 | W10: 3
A11: 10 | B11: 0 | C11: 0 | D11: 0 | E11: 0 | F11: -2 | G11: 1.28037037 | H11: 0 | I11: 0 | J11: 0.3164332575 | K11: 0.2963512865 | L11: 1.534024568e-230 | M11: -1.872322236e-230 | N11: 1.042167786e-230 | O11: 5.832201343e-232 | P11: 1.042167786e-230 | Q11: 5.832201343e-232 | R11: 0 | T11: 0 | U11: 0 | W11: 3.333333333
A12: 11 | B12: 0 | C12: 0 | D12: 0 | E12: 0 | F12: -2 | G12: 1.28037037 | H12: 0 | I12: 0 | J12: 0.3164332575 | K12: 0.2963512865 | L12: -3.694982743e-231 | M12: -5.570909207e-230 | N12: 1.846517311e-230 | O12: -1.545019448e-230 | P12: 1.846517311e-230 | Q12: -1.545019448e-230 | R12: 0 | T12: 0 | U12: 0 | W12: 3.666666667
A13: 12 | B13: 0 | C13: 0 | D13: 0 | E13: 0 | F13: -2 | G13: 1.28037037 | H13: 0 | I13: 0 | J13: 0.3164332575 | K13: 0.2963512865 | L13: -9.4058482e-230 | M13: -8.796401534e-230 | N13: 6.726697145e-231 | O13: -5.512586962e-230 | P13: 6.726697145e-231 | Q13: -5.512586962e-230 | R13: 0 | T13: 0 | U13: 0 | W13: 4
A14: 13 | B14: 0 | C14: 0 | D14: 0 | E14: 0 | F14: -2 | G14: 1.28037037 | H14: 0 | I14: 0 | J14: 0.3164332575 | K14: 0.2963512865 | L14: -2.970485002e-229 | M14: 2.107548171e-232 | N14: -7.559330893e-230 | O14: -1.034142085e-229 | P14: -7.559330893e-230 | Q14: -1.034142085e-229 | R14: 0 | T14: 0 | U14: 0 | W14: 4.333333333
A15: 14 | B15: 0 | C15: 0 | D15: 0 | E15: 0 | F15: -2 | G15: 1.28037037 | H15: 0 | I15: 0 | J15: 0.3164332575 | K15: 0.2963512865 | L15: -4.997686741e-229 | M15: 4.687176232e-229 | N15: -2.903218034e-229 | O15: -5.49151144e-230 | P15: -2.903218034e-229 | Q15: -5.49151144e-230 | R15: 0 | T15: 0 | U15: 0 | W15: 4.666666667
A16: 15 | B16: 0 | C16: 0 | D16: 0 | E16: 0 | F16: -2 | G16: 1.28037037 | H16: 0 | I16: 0 | J16: 0.3164332575 | K16: 0.2963512865 | L16: -1.023566913e-229 | M16: 1.577113494e-228 | N16: -5.753619833e-229 | O16: 3.653034147e-229 | P16: -5.753619833e-229 | Q16: 3.653034147e-229 | R16: 0 | T16: 0 | U16: 0 | W16: 5
A17: 16 | B17: 0 | C17: 0 | D17: 0 | E17: 0 | F17: -2 | G17: 1.28037037 | H17: 0 | I17: 0 | J17: 0.3164332575 | K17: 0.2963512865 | L17: 2.31434468e-228 | M17: 2.816563839e-228 | N17: -3.926784948e-229 | O17: 1.522198379e-228 | P17: -3.926784948e-229 | Q17: 1.522198379e-228 | R17: 0 | T17: 0 | U17: 0 | W17: 5.333333333
A18: 17 | B18: 0 | C18: 0 | D18: 0 | E18: 0 | F18: -2 | G18: 1.28037037 | H18: 0 | I18: 0 | J18: 0.3164332575 | K18: 0.2963512865 | L18: 8.337290937e-228 | M18: 1.09279583e-228 | N18: 1.738982697e-228 | O18: 3.181867254e-228 | P18: 1.738982697e-228 | Q18: 3.181867254e-228 | R18: 0 | T18: 0 | U18: 0 | W18: 5.666666667
A19: 18 | B19: 0 | C19: 0 | D19: 0 | E19: 0 | F19: -2 | G19: 1.28037037 | H19: 0 | I19: 0 | J19: 0.3164332575 | K19: 0.2963512865 | L19: 1.57594206e-227 | M19: -1.130579246e-227 | N19: 7.944612442e-228 | O19: 2.614994209e-228 | P19: 7.944612442e-228 | Q19: 2.614994209e-228 | R19: 0 | T19: 0 | U19: 0 | W19: 6
A20: 19 | B20: 0 | C20: 0 | D20: 0 | E20: 0 | F20: -2 | G20: 1.28037037 | H20: 0 | I20: 0 | J20: 0.3164332575 | K20: 0.2963512865 | L20: 8.70594857e-228 | M20: -4.388227594e-227 | N20: 1.749840329e-227 | O20: -8.12392521e-228 | P20: 1.749840329e-227 | Q20: -8.12392521e-228 | R20: 0 | T20: 0 | U20: 0 | W20: 6.333333333
A21: 20 | B21: 0 | C21: 0 | D21: 0 | E21: 0 | F21: -2 | G21: 1.28037037 | H21: 0 | I21: 0 | J21: 0.3164332575 | K21: 0.2963512865 | L21: -5.453308936e-227 | M21: -8.760559802e-227 | N21: 1.665056101e-227 | O21: -4.126728173e-227 | P21: 1.665056101e-227 | Q21: -4.126728173e-227 | R21: 0 | T21: 0 | U21: 0 | W21: 6.666666667
A22: 21 | B22: 0 | C22: 0 | D22: 0 | E22: 0 | F22: -2 | G22: 1.28037037 | H22: 0 | I22: 0 | J22: 0.3164332575 | K22: 0.2963512865 | L22: -2.299397393e-226 | M22: -6.150636827e-227 | N22: -3.703468607e-227 | O22: -9.572952323e-227 | P22: -3.703468607e-227 | Q22: -9.572952323e-227 | R22: 0 | T22: 0 | U22: 0 | W22: 7
A23: 22 | B23: 0 | C23: 9.868605655e-308 | D23: 2.317928371e-308 | E23: 0 | F23: -2 | G23: 1.28037037 | H23: -5.935613613e-308 | I23: 2.527094055e-307 | J23: 0.3164332575 | K23: 0.2963512865 | L23: -4.840973207e-226 | M23: 2.590008906e-226 | N23: -2.132891783e-226 | O23: -1.0277365e-226 | P23: -2.132891783e-226 | Q23: -1.0277365e-226 | R23: 0 | T23: 9.868605655e-308 | U23: 2.317928371e-308 | W23: 7.333333333
A24: 23 | B24: 0 | C24: 5.735571541e-307 | D24: 3.335828889e-307 | E24: 0 | F24: -2 | G24: 1.28037037 | H24: -8.54219294e-307 | I24: 1.468731172e-306 | J24: 0.3164332575 | K24: 0.2963512865 | L24: -4.066378359e-226 | M24: 1.199332015e-225 | N24: -5.211320068e-226 | O24: 1.632713674e-226 | P24: -5.211320068e-226 | Q24: 1.632713674e-226 | R24: 0 | T24: 5.735571541e-307 | U24: 3.335828889e-307 | W24: 7.666666667
A25: 24 | B25: 0 | C25: 2.946311705e-306 | D25: 3.175817044e-306 | E25: 0 | F25: -2 | G25: 1.28037037 | H25: -8.132444091e-306 | I25: 7.544740418e-306 | J25: 0.3164332575 | K25: 0.2963512865 | L25: 1.206410826e-225 | M25: 2.660310177e-225 | N25: -6.199270142e-226 | O25: 1.096558365e-225 | P25: -6.199270142e-226 | Q25: 1.096558365e-225 | R25: 0 | T25: 2.946311705e-306 | U25: 3.175817044e-306 | W25: 8
A26: 25 | B26: 0 | C26: 1.23185331e-305 | D26: 2.538180476e-305 | E26: 0 | F26: -2 | G26: 1.28037037 | H26: -6.499622152e-305 | I26: 3.154456958e-305 | J26: 0.3164332575 | K26: 0.2963512865 | L26: 6.225641813e-225 | M26: 2.576635662e-225 | N26: 6.852788187e-226 | O26: 2.823581544e-225 | P26: 6.852788187e-226 | Q26: 2.823581544e-225 | R26: 0 | T26: 1.23185331e-305 | U26: 2.538180476e-305 | W26: 8.333333333
A27: 26 | B27: 0 | C27: 2.843247313e-305 | D27: 1.810655301e-304 | E27: 0 | F27: -2 | G27: 1.28037037 | H27: -4.636618798e-304 | I27: 7.280819229e-305 | J27: 0.3164332575 | K27: 0.2963512865 | L27: 1.454392076e-224 | M27: -5.478166166e-225 | N27: 5.605714799e-225 | O27: 3.673194028e-225 | P27: 5.605714799e-225 | Q27: 3.673194028e-225 | R27: 0 | T27: 2.843247313e-305 | U27: 1.810655301e-304 | W27: 8.666666667
A28: 27 | B28: 0 | C28: -1.661245047e-304 | D28: 1.176042042e-303 | E28: 0 | F28: -2 | G28: 1.28037037 | H28: -3.011538771e-303 | I28: -4.254017871e-304 | J28: 0.3164332575 | K28: 0.2963512865 | L28: 1.584811806e-224 | M28: -3.21545732e-224 | N28: 1.522919958e-224 | O28: -2.654584622e-225 | P28: 1.522919958e-224 | Q28: -2.654584622e-225 | R28: 0 | T28: -1.661245047e-304 | U28: 1.176042042e-303 | W28: 9
A29: 28 | B29: 0 | C29: -3.245187946e-303 | D29: 6.957836497e-303 | E29: 0 | F29: -2 | G29: 1.28037037 | H29: -1.781721539e-302 | I29: -8.310084984e-303 | J29: 0.3164332575 | K29: 0.2963512865 | L29: -2.401744744e-224 | M29: -7.912244103e-224 | N29: 2.145383286e-224 | O29: -2.848137917e-224 | P29: 2.145383286e-224 | Q29: -2.848137917e-224 | R29: 0 | T29: -3.245187946e-303 | U29: 6.957836497e-303 | W29: 9.333333333
A30: 29 | B30: 0 | C30: -3.310416161e-302 | D30: 3.680571993e-302 | E30: 0 | F30: -2 | G30: 1.28037037 | H30: -9.424990652e-302 | I30: -8.477117533e-302 | J30: 0.3164332575 | K30: 0.2963512865 | L30: -1.651890421e-223 | M30: -9.533908078e-224 | N30: -8.78824786e-225 | O30: -8.177702565e-224 | P30: -8.78824786e-225 | Q30: -8.177702565e-224 | R30: 0 | T30: -3.310416161e-302 | U30: 3.680571993e-302 | W30: 9.666666667
A31: 30 | B31: 0 | C31: -2.727249793e-301 | D31: 1.643000936e-301 | E31: 0 | F31: -2 | G31: 1.28037037 | H31: -4.207299435e-301 | I31: -6.983779654e-301 | J31: 0.3164332575 | K31: 0.2963512865 | L31: -4.284299708e-223 | M31: 9.994743442e-224 | N31: -1.437352092e-223 | O31: -1.2382046e-223 | P31: -1.437352092e-223 | Q31: -1.2382046e-223 | R31: 0 | T31: -2.727249793e-301 | U31: 1.643000936e-301 | W31: 10
A32: 31 | B32: 0 | C32: -1.981151531e-300 | D32: 4.977019867e-301 | E32: 0 | F32: -2 | G32: 1.28037037 | H32: -1.274485754e-300 | I32: -5.073215438e-300 | J32: 0.3164332575 | K32: 0.2963512865 | L32: -5.63701166e-223 | M32: 8.437829901e-223 | N32: -4.372182187e-223 | O32: 1.817040877e-224 | P32: -4.372182187e-223 | Q32: 1.817040877e-224 | R32: 0 | T32: -1.981151531e-300 | U32: 4.977019867e-301 | W32: 10.33333333
A33: 32 | B33: 0 | C33: -1.305641206e-299 | D33: -6.528466034e-301 | E33: 0 | F33: -2 | G33: 1.28037037 | H33: 1.671770895e-300 | I33: -3.343408629e-299 | J33: 0.3164332575 | K33: 0.2963512865 | L33: 3.813823783e-223 | M33: 2.309364816e-222 | N33: -7.074363752e-223 | O33: 7.199625301e-223 | P33: -7.074363752e-223 | Q33: 7.199625301e-223 | R33: 0 | T33: -1.305641206e-299 | U33: -6.528466034e-301 | W33: 10.66666667
A34: 33 | B34: 0 | C34: -7.850555869e-299 | D34: -2.830549519e-299 | E34: 0 | F34: -2 | G34: 1.28037037 | H34: 7.248303471e-299 | I34: -2.010323825e-298 | J34: 0.3164332575 | K34: 0.2963512865 | L34: 4.283308208e-222 | M34: 3.286635946e-222 | N34: -5.583584037e-224 | O34: 2.327535225e-222 | P34: -5.583584037e-224 | Q34: 2.327535225e-222 | R34: 0 | T34: -7.850555869e-299 | U34: -2.830549519e-299 | W34: 11
A35: 34 | B35: 0 | C35: -4.255617529e-298 | D35: -3.182615596e-298 | E35: 0 | F35: -2 | G35: 1.28037037 | H35: 8.149853418e-298 | I35: -1.089753318e-297 | J35: 0.3164332575 | K35: 0.2963512865 | L35: 1.239334532e-221 | M35: -1.220313842e-222 | N35: 3.575871833e-222 | O35: 4.006598476e-222 | P35: 3.575871833e-222 | Q35: 4.006598476e-222 | R35: 0 | T35: -4.255617529e-298 | U35: -3.182615596e-298 | W35: 11.33333333
A36: 35 | B36: 0 | C36: -1.995644742e-297 | D36: -2.722301851e-297 | E36: 0 | F36: -2 | G36: 1.28037037 | H36: 6.97110926e-297 | I36: -5.110328794e-297 | J36: 0.3164332575 | K36: 0.2963512865 | L36: 1.894092875e-221 | M36: -2.159533577e-221 | N36: 1.233750948e-221 | O36: 1.107221384e-222 | P36: 1.233750948e-221 | Q36: 1.107221384e-222 | R36: 0 | T36: -1.995644742e-297 | U36: -2.722301851e-297 | W36: 11.66666667
A37: 36 | B37: 0 | C37: -7.061472169e-297 | D37: -2.01873635e-296 | E37: 0 | F37: -2 | G37: 1.28037037 | H37: 5.169460415e-296 | I37: -1.808259947e-296 | J37: 0.3164332575 | K37: 0.2963512865 | L37: -2.161515879e-222 | M37: -6.622176165e-221 | N37: 2.251680058e-221 | O37: -1.758873729e-221 | P37: 2.251680058e-221 | Q37: -1.758873729e-221 | R37: 0 | T37: -7.061472169e-297 | U37: -2.01873635e-296 | W37: 12
A38: 37 | B38: 0 | C38: -5.460415685e-297 | D38: -1.350582262e-295 | E38: 0 | F38: -2 | G38: 1.28037037 | H38: 3.458491022e-295 | I38: -1.398270891e-296 | J38: 0.3164332575 | K38: 0.2963512865 | L38: -1.08052342e-220 | M38: -1.080806466e-220 | N38: 1.01759936e-221 | O38: -6.511454027e-221 | P38: 1.01759936e-221 | Q38: -6.511454027e-221 | R38: 0 | T38: -5.460415685e-297 | U38: -1.350582262e-295 | W38: 12.33333333
A39: 38 | B39: 0 | C39: 2.155117e-295 | D39: -8.244567471e-295 | E39: 0 | F39: -2 | G39: 1.28037037 | H39: 2.111219981e-294 | I39: 5.518695903e-295 | J39: 0.3164332575 | K39: 0.2963512865 | L39: -3.523264257e-220 | M39: -1.15925145e-221 | N39: -8.553554141e-221 | O39: -1.256693839e-220 | P39: -8.553554141e-221 | Q39: -1.256693839e-220 | R39: 0 | T39: 2.155117e-295 | U39: -8.244567471e-295 | W39: 12.66666667
A40: 39 | B40: 0 | C40: 2.809103161e-294 | D40: -4.563687453e-294 | E40: 0 | F40: -2 | G40: 1.28037037 | H40: 1.168642039e-293 | I40: 7.193384909e-294 | J40: 0.3164332575 | K40: 0.2963512865 | L40: -6.114432215e-220 | M40: 5.360039338e-220 | N40: -3.421504321e-220 | O40: -7.670705477e-221 | P40: -3.421504321e-220 | Q40: -7.670705477e-221 | R40: 0 | T40: 2.809103161e-294 | U40: -4.563687453e-294 | W40: 13
A41: 40 | B41: 0 | C41: 2.520763671e-293 | D41: -2.224061268e-293 | E41: 0 | F41: -2 | G41: 1.28037037 | H41: 5.695244298e-293 | I41: 6.455022231e-293 | J41: 0.3164332575 | K41: 0.2963512865 | L41: -1.84276462e-220 | M41: 1.866474166e-219 | N41: -6.969787629e-220 | O41: 4.103345499e-220 | P41: -6.969787629e-220 | Q41: 4.103345499e-220 | R41: 0 | T41: 2.520763671e-293 | U41: -2.224061268e-293 | W41: 13.33333333
A42: 41 | B42: 0 | C42: 1.914741139e-292 | D42: -8.708789916e-293 | E42: 0 | F42: -2 | G42: 1.28037037 | H42: 2.230095314e-292 | I42: 4.903155642e-292 | J42: 0.3164332575 | K42: 0.2963512865 | L42: 2.632668517e-219 | M42: 3.43288652e-219 | N42: -5.264268941e-220 | O42: 1.789767111e-219 | P42: -5.264268941e-220 | Q42: 1.789767111e-219 | R42: 0 | T42: 1.914741139e-292 | U42: -8.708789916e-293 | W42: 13.66666667
A43: 42 | B43: 0 | C43: 1.301719813e-291 | D43: -1.712115758e-292 | E43: 0 | F43: -2 | G43: 1.28037037 | H43: 4.384284574e-292 | I43: 3.333366958e-291 | J43: 0.3164332575 | K43: 0.2963512865 | L43: 9.844979681e-219 | M43: 1.628508111e-219 | N43: 1.935689754e-219 | O43: 3.84322107e-219 | P43: 1.935689754e-219 | Q43: 3.84322107e-219 | R43: 0 | T43: 1.301719813e-291 | U43: -1.712115758e-292 | W43: 14
A44: 43 | B44: 0 | C44: 8.063001122e-291 | D44: 1.345162426e-291 | E44: 0 | F44: -2 | G44: 1.28037037 | H44: -3.444612227e-291 | I44: 2.064725547e-290 | J44: 0.3164332575 | K44: 0.2963512865 | L44: 1.914238438e-218 | M44: -1.278109058e-218 | N44: 9.318552786e-219 | O44: 3.418275222e-219 | P44: 9.318552786e-219 | Q44: 3.418275222e-219 | R44: 0 | T44: 8.063001122e-291 | U44: 1.345162426e-291 | W44: 14.33333333
A45: 44 | B45: 0 | C45: 4.545912708e-290 | D45: 2.260168301e-290 | E45: 0 | F45: -2 | G45: 1.28037037 | H45: -5.78770505e-290 | I45: 1.164090388e-289 | J45: 0.3164332575 | K45: 0.2963512865 | L45: 1.20752594e-218 | M45: -5.170003104e-218 | N45: 2.107807413e-218 | O45: -8.937869509e-219 | P45: 2.107807413e-218 | Q45: -8.937869509e-219 | R45: 0 | T45: 4.545912708e-290 | U45: 2.260168301e-290 | W45: 14.66666667
A46: 45 | B46: 0 | C46: 2.285125547e-289 | D46: 2.160967342e-289 | E46: 0 | F46: -2 | G46: 1.28037037 | H46: -5.533677113e-289 | I46: 5.851614085e-289 | J46: 0.3164332575 | K46: 0.2963512865 | L46: -6.118705348e-218 | M46: -1.060797759e-217 | N46: 2.139381218e-218 | O46: -4.828175582e-218 | P46: 2.139381218e-218 | Q46: -4.828175582e-218 | R46: 0 | T46: 2.285125547e-289 | U46: 2.160967342e-289 | W46: 15
A47: 46 | B47: 0 | C47: 9.610275923e-289 | D47: 1.689302057e-288 | E47: 0 | F47: -2 | G47: 1.28037037 | H47: -4.3258646e-288 | I47: 2.460942509e-288 | J47: 0.3164332575 | K47: 0.2963512865 | L47: -2.702707683e-217 | M47: -8.211743033e-218 | N47: -4.010897935e-218 | O47: -1.150176454e-217 | P47: -4.010897935e-218 | Q47: -1.150176454e-217 | R47: 0 | T47: 9.610275923e-289 | U47: 1.689302057e-288 | W47: 15.33333333
A48: 47 | B48: 0 | C48: 2.627823449e-288 | D48: 1.168846291e-287 | E48: 0 | F48: -2 | G48: 1.28037037 | H48: -2.993112317e-287 | I48: 6.729174566e-288 | J48: 0.3164332575 | K48: 0.2963512865 | L48: -5.844952077e-217 | M48: 2.878915988e-217 | N48: -2.488769561e-217 | O48: -1.303991862e-217 | P48: -2.488769561e-217 | Q48: -1.303991862e-217 | R48: 0 | T48: 2.627823449e-288 | U48: 1.168846291e-287 | W48: 15.66666667
A49: 48 | B49: 0 | C49: -5.515215656e-288 | D49: 7.345669914e-287 | E49: 0 | F49: -2 | G49: 1.28037037 | H49: -1.881035622e-286 | I49: -1.412303742e-287 | J49: 0.3164332575 | K49: 0.2963512865 | L49: -5.301117741e-217 | M49: 1.406270974e-216 | N49: -6.246041871e-217 | O49: 1.728739535e-217 | P49: -6.246041871e-217 | Q49: 1.728739535e-217 | R49: 0 | T49: -5.515215656e-288 | U49: 7.345669914e-287 | W49: 16
A50: 49 | B50: 0 | C50: -1.638128191e-286 | D50: 4.210648565e-286 | E50: 0 | F50: -2 | G50: 1.28037037 | H50: -1.078237933e-285 | I50: -4.194821597e-286 | J50: 0.3164332575 | K50: 0.2963512865 | L50: 1.324819347e-216 | M50: 3.203389757e-216 | N50: -7.789887302e-217 | O50: 1.275871787e-216 | P50: -7.789887302e-217 | Q50: 1.275871787e-216 | R50: 0 | T50: -1.638128191e-286 | U50: 4.210648565e-286 | W50: 16.33333333
A51: 50 | B51: 0 | C51: -1.710264863e-285 | D51: 2.171589147e-285 | E51: 0 | F51: -2 | G51: 1.28037037 | H51: -5.5608768e-285 | I51: -4.379544913e-285 | J51: 0.3164332575 | K51: 0.2963512865 | L51: 7.281275797e-216 | M51: 3.304249103e-216 | N51: 7.002151597e-217 | O51: 3.37626371e-216 | P51: 7.002151597e-217 | Q51: 3.37626371e-216 | R51: 0 | T51: -1.710264863e-285 | U51: 2.171589147e-285 | W51: 16.66666667
A52: 51 | B52: 0 | C52: -1.385013557e-284 | D52: 9.630706093e-285 | E52: 0 | F52: -2 | G52: 1.28037037 | H52: -2.466174145e-284 | I52: -3.546660641e-284 | J52: 0.3164332575 | K52: 0.2963512865 | L52: 1.746839489e-215 | M52: -5.917621341e-216 | N52: 6.502287067e-216 | O52: 4.58012089e-216 | P52: 6.502287067e-216 | Q52: 4.58012089e-216 | R52: 0 | T52: -1.385013557e-284 | U52: 9.630706093e-285 | W52: 17
A53: 52 | B53: 0 | C53: -9.77512044e-284 | D53: 3.147560162e-284 | E53: 0 | F53: -2 | G53: 1.28037037 | H53: -8.060085542e-284 | I53: -2.503154916e-283 | J53: 0.3164332575 | K53: 0.2963512865 | L53: 2.007876696e-215 | M53: -3.750550703e-215 | N53: 1.816861005e-215 | O53: -2.54135763e-216 | P53: 1.816861005e-215 | Q53: -2.54135763e-216 | R53: 0 | T53: -9.77512044e-284 | U53: 3.147560162e-284 | W53: 17.33333333
A54: 53 | B54: 0 | C54: -6.23521027e-283 | D54: 9.62037555e-285 | E54: 0 | F54: -2 | G54: 1.28037037 | H54: -2.463528761e-284 | I54: -1.596675697e-282 | J54: 0.3164332575 | K54: 0.2963512865 | L54: -2.533180089e-215 | M54: -9.480165101e-215 | N54: 2.658105403e-215 | O54: -3.292538614e-215 | P54: 2.658105403e-215 | Q54: -3.292538614e-215 | R54: 0 | T54: -6.23521027e-283 | U54: 9.62037555e-285 | W54: 17.66666667
A55: 54 | B55: 0 | C55: -3.629459308e-282 | D55: -1.046251636e-282 | E55: 0 | F55: -2 | G55: 1.28037037 | H55: 2.679179188e-282 | I55: -9.294104317e-282 | J55: 0.3164332575 | K55: 0.2963512865 | L55: -1.921235937e-214 | M55: -1.196637077e-214 | N55: -7.163190832e-216 | O55: -9.734300864e-215 | P55: -7.163190832e-216 | Q55: -9.734300864e-215 | R55: 0 | T55: -3.629459308e-282 | U55: -1.046251636e-282 | W55: 18
A56: 55 | B56: 0 | C56: -1.913078771e-281 | D56: -1.244503004e-281 | E56: 0 | F56: -2 | G56: 1.28037037 | H56: 3.186849544e-281 | I56: -4.89889875e-281 | J56: 0.3164332575 | K56: 0.2963512865 | L56: -5.121292524e-214 | M56: 1.014635925e-214 | N56: -1.655425397e-214 | O56: -1.525890938e-214 | P56: -1.655425397e-214 | Q56: -1.525890938e-214 | R56: 0 | T56: -1.913078771e-281 | U56: -1.244503004e-281 | W56: 18.33333333
A57: 56 | B57: 0 | C57: -8.839890455e-281 | D57: -1.053848508e-280 | E57: 0 | F57: -2 | G57: 1.28037037 | H57: 2.69863281e-280 | I57: -2.263666763e-280 | J57: 0.3164332575 | K57: 0.2963512865 | L57: -7.022239335e-214 | M57: 9.783060132e-214 | N57: -5.192924432e-214 | O57: 4.120583846e-216 | P57: -5.192924432e-214 | Q57: 4.120583846e-216 | R57: 0 | T57: -8.839890455e-281 | U57: -1.053848508e-280 | W57: 18.66666667
A58: 57 | B58: 0 | C58: -3.234629767e-280 | D58: -7.610655213e-280 | E58: 0 | F58: -2 | G58: 1.28037037 | H58: 1.948891487e-279 | I58: -8.283048225e-280 | J58: 0.3164332575 | K58: 0.2963512865 | L58: 3.602754178e-214 | M58: 2.754255152e-213 | N58: -8.677664732e-214 | O58: 8.257169194e-214 | P58: -8.677664732e-214 | Q58: 8.257169194e-214 | R58: 0 | T58: -3.234629767e-280 | U58: -7.610655213e-280 | W58: 19
A59: 58 | B59: 0 | C59: -5.236852175e-280 | D59: -4.931454823e-279 | E59: 0 | F59: -2 | G59: 1.28037037 | H59: 1.262817728e-278 | I59: -1.341022072e-279 | J59: 0.3164332575 | K59: 0.2963512865 | L59: 4.949241458e-213 | M59: 4.06891832e-213 | N59: -1.590170254e-214 | O59: 2.758375736e-213 | P59: -1.590170254e-214 | Q59: 2.758375736e-213 | R59: 0 | T59: -5.236852175e-280 | U59: -4.931454823e-279 | W59: 19.33333333
A60: 59 | B60: 0 | C60: 5.611053652e-279 | D60: -2.913020535e-278 | E60: 0 | F60: -2 | G60: 1.28037037 | H60: 7.459490363e-278 | I60: 1.436845369e-278 | J60: 0.3164332575 | K60: 0.2963512865 | L60: 1.474792995e-212 | M60: -9.5328063e-214 | N60: 4.081474985e-213 | O60: 4.894635239e-213 | P60: 4.081474985e-213 | Q60: 4.894635239e-213 | R60: 0 | T60: 5.611053652e-279 | U60: -2.913020535e-278 | W60: 19.66666667
A61: 60 | B61: 0 | C61: 8.274162449e-278 | D61: -1.564881443e-277 | E61: 0 | F61: -2 | G61: 1.28037037 | H61: 4.007255666e-277 | I61: 2.118798488e-277 | J61: 0.3164332575 | K61: 0.2963512865 | L61: 2.332606618e-212 | M61: -2.485829212e-212 | N61: 1.458891293e-212 | O61: 1.805095106e-213 | P61: 1.458891293e-212 | Q61: 1.805095106e-213 | R61: 0 | T61: 8.274162449e-278 | U61: -1.564881443e-277 | W61: 20
A62: 61 | B62: 0 | C62: 7.428327478e-277 | D62: -7.472101966e-277 | E62: 0 | F62: -2 | G62: 1.28037037 | H62: 1.913411592e-276 | I62: 1.902202081e-276 | J62: 0.3164332575 | K62: 0.2963512865 | L62: 7.638171488e-215 | M62: -7.86293076e-212 | N62: 2.740754116e-212 | O62: -1.996365688e-212 | P62: 2.740754116e-212 | Q62: -1.996365688e-212 | R62: 0 | T62: 7.428327478e-277 | U62: -7.472101966e-277 | W62: 20.33333333
A63: 62 | B63: 0 | C63: 5.51292966e-276 | D63: -2.95648631e-276 | E63: 0 | F63: -2 | G63: 1.28037037 | H63: 7.570794944e-276 | I63: 1.411718358e-275 | J63: 0.3164332575 | K63: 0.2963512865 | L63: -1.238479384e-211 | M63: -1.3249812e-211 | N63: 1.466529464e-212 | O63: -7.682421249e-212 | P63: 1.466529464e-212 | Q63: -7.682421249e-212 | R63: 0 | T63: 5.51292966e-276 | U63: -2.95648631e-276 | W63: 20.66666667
A64: 63 | B64: 0 | C64: 3.633824153e-275 | D64: -7.221147472e-276 | E64: 0 | F64: -2 | G64: 1.28037037 | H64: 1.849148653e-275 | I64: 9.305281553e-275 | J64: 0.3164332575 | K64: 0.2963512865 | L64: -4.174189255e-211 | M64: -2.779570152e-212 | N64: -9.644039727e-212 | O64: -1.524617768e-211 | P64: -9.644039727e-212 | Q64: -1.524617768e-211 | R64: 0 | T64: 3.633824153e-275 | U64: -7.221147472e-276 | W64: 21
A65: 64 | B65: 0 | C65: 2.177799736e-274 | D65: 2.183345271e-275 | E65: 0 | F65: -2 | G65: 1.28037037 | H65: -5.590981186e-275 | I65: 5.576780509e-274 | J65: 0.3164332575 | K65: 0.2963512865 | L65: -7.465787052e-211 | M65: 6.113575412e-211 | N65: -4.027536309e-211 | O65: -1.04619914e-211 | P65: -4.027536309e-211 | Q65: -1.04619914e-211 | R65: 0 | T65: 2.177799736e-274 | U65: 2.183345271e-275 | W65: 21.33333333
A66: 65 | B66: 0 | C66: 1.189972827e-273 | D66: 4.975200027e-274 | E66: 0 | F66: -2 | G66: 1.28037037 | H66: -1.27401974e-273 | I66: 3.047211897e-273 | J66: 0.3164332575 | K66: 0.2963512865 | L66: -2.929744035e-211 | M66: 2.206408037e-210 | N66: -8.430191025e-211 | O66: 4.588957643e-211 | P66: -8.430191025e-211 | Q66: 4.588957643e-211 | R66: 0 | T66: 1.189972827e-273 | U66: 4.975200027e-274 | W66: 21.66666667
A67: 66 | B67: 0 | C67: 5.837206273e-273 | D67: 4.838221367e-273 | E67: =C67^2+D67^2 -> 0 | F67: =-2-0.2626*B67/9 -> -2 | G67: =3.457/2.7 -> 1.28037037 | H67: =-2*G67*D67 -> -1.238943057e-272 | I67: =2*G67*C67 -> 1.494757192e-272 | J67: =(-F67-J68)/((F67+J68)^2+(G67+K68)^2) -> 0.3164332575 | K67: =(G67+K68)/((F67+J68)^2+(G67+K68)^2) -> 0.2963512865 | L67: =J68*(L68-H68)-K68*(M68-I68) -> 2.985649374e-210 | M67: =J68*(M68-I68)+K68*(L68-H68) -> 4.176574279e-210 | N67: -6.957280344e-211 | O67: 2.101788123e-210 | P67: -6.957280344e-211 | Q67: 2.101788123e-210 | R67: 0 | T67: 5.837206273e-273 | U67: 4.838221367e-273 | W67: 22
A68: =A67+1 -> 67 | B68: 0 | C68: 2.445977404e-272 | D68: 3.71211277e-272 | E68: 0 | F68: -2 | G68: 1.28037037 | H68: -9.505758406e-272 | I68: 6.26351399e-272 | J68: 0.3164332575 | K68: 0.2963512865 | L68: 1.161183511e-209 | M68: 2.324003526e-210 | N68: =J68*N67-K68*O67+L67 -> 2.142630271e-210 | O68: =J68*O67+K68*N67+M67 -> 4.635470043e-210 | P68: =N68-C68 -> 2.142630271e-210 | Q68: =O68-D68 -> 4.635470043e-210 | R68: =P68^2+Q68^2 -> 0 | T68: =(EXP(-(($A68-$Z$4)^2/$Z$3))*COS($Z$2*$A68/3)) -> 2.445977404e-272 | U68: =(EXP(-(($A68-$Z$4)^2/$Z$3))*SIN($Z$2*$A68/3)) -> 3.71211277e-272 | W68: =A68/3 -> 22.33333333
A69: 68 | B69: 0 | C69: 7.348700335e-272 | D69: 2.494118131e-271 | E69: 0 | F69: -2 | G69: 1.28037037 | H69: -6.386789911e-271 | I69: 1.881811634e-271 | J69: 0.3164332575 | K69: 0.2963512865 | L69: 2.32136061e-209 | M69: -1.439601685e-209 | N69: 1.091610707e-209 | O69: 4.425791649e-210 | P69: 1.091610707e-209 | Q69: 4.425791649e-210 | R69: 0 | T69: 7.348700335e-272 | U69: 2.494118131e-271 | W69: 22.66666667
A70: 69 | B70: 0 | C70: -1.449048515e-272 | D70: 1.51691624e-270 | E70: 0 | F70: -2 | G70: 1.28037037 | H70: -3.884429215e-270 | I70: -3.710637569e-272 | J70: 0.3164332575 | K70: 0.2963512865 | L70: 1.638314367e-209 | M70: -6.083805065e-209 | N70: 2.535623637e-209 | O70: -9.760546802e-210 | P70: 2.535623637e-209 | Q70: -9.760546802e-210 | R70: 0 | T70: -1.449048515e-272 | U70: 1.51691624e-270 | W70: 23
A71: 70 | B71: 0 | C71: -2.656482734e-270 | D71: 8.419260677e-270 | E71: 0 | F71: -2 | G71: 1.28037037 | H71: -2.155954382e-269 | I71: -6.802563563e-270 | J71: 0.3164332575 | K71: 0.2963512865 | L71: -6.834255621e-209 | M71: -1.282565762e-208 | N71: 2.729925074e-209 | O71: -5.6412259e-209 | P71: 2.729925074e-209 | Q71: -5.6412259e-209 | R71: 0 | T71: -2.656482734e-270 | U71: 8.419260677e-270 | W71: 23.33333333
A72: 71 | B72: 0 | C72: -2.901105834e-269 | D72: 4.224891536e-269 | E72: 0 | F72: -2 | G72: 1.28037037 | H72: -1.081885188e-268 | I72: -7.428979902e-269 | J72: 0.3164332575 | K72: 0.2963512865 | L72: -3.17284176e-208 | M72: -1.081713177e-208 | N72: -4.298631984e-209 | O72: -1.38017123e-208 | P72: -4.298631984e-209 | Q72: -1.38017123e-208 | R72: 0 | T72: -2.901105834e-269 | U72: 4.224891536e-269 | W72: 23.66666667
A73: 72 | B73: 0 | C73: -2.320672915e-268 | D73: 1.849873495e-268 | E73: 0 | F73: -2 | G73: 1.28037037 | H73: -4.737046425e-268 | I73: -5.942641679e-268 | J73: 0.3164332575 | K73: 0.2963512865 | L73: -7.04725146e-208 | M73: 3.181551988e-208 | N73: -2.899849253e-208 | O73: -1.645835767e-208 | P73: -2.899849253e-208 | Q73: -1.645835767e-208 | R73: 0 | T73: -2.320672915e-268 | U73: 1.849873495e-268 | W73: 24
A74: 73 | B74: 0 | C74: -1.593916439e-267 | D74: 6.309113559e-268 | E74: 0 | F74: -2 | G74: 1.28037037 | H74: -1.615600413e-267 | I74: -4.081606762e-267 | J74: 0.3164332575 | K74: 0.2963512865 | L74: -6.848096262e-208 | M74: 1.646790911e-207 | N74: -7.477114658e-208 | O74: 1.801380758e-208 | P74: -7.477114658e-208 | Q74: 1.801380758e-208 | R74: 0 | T74: -1.593916439e-267 | U74: 6.309113559e-268 | W74: 24.33333333
A75: 74 | B75: 0 | C75: -9.844871334e-267 | D75: 7.973613475e-268 | E75: 0 | F75: -2 | G75: 1.28037037 | H75: -2.041835688e-267 | I75: -2.521016311e-266 | J75: 0.3164332575 | K75: 0.2963512865 | L75: 1.443608183e-207 | M75: 3.852236579e-207 | N75: -9.747945515e-208 | O75: 1.482207335e-207 | P75: -9.747945515e-208 | Q75: 1.482207335e-207 | R75: 0 | T75: -9.844871334e-267 | U75: 7.973613475e-268 | W75: 24.66666667
A76: 75 | B76: 0 | C76: -5.545756695e-266 | D76: -1.212621259e-266 | E76: 0 | F76: -2 | G76: 1.28037037 | H76: 3.105208662e-266 | I76: -1.420124511e-265 | J76: 0.3164332575 | K76: 0.2963512865 | L76: 8.504315567e-207 | M76: 4.209329103e-207 | N76: 6.958967168e-208 | O76: 4.032374655e-207 | P76: 6.958967168e-208 | Q76: 4.032374655e-207 | R76: 0 | T76: -5.545756695e-266 | U76: -1.212621259e-266 | W76: 25
A77: 76 | B77: 0 | C77: -2.838222813e-265 | D77: -1.592637532e-265 | E77: 0 | F77: -2 | G77: 1.28037037 | H77: 4.078331814e-265 | I77: -7.267952789e-265 | J77: 0.3164332575 | K77: 0.2963512865 | L77: 2.095452321e-206 | M77: -6.322252045e-207 | N77: 7.529521015e-207 | O77: 5.691536437e-207 | P77: 7.529521015e-207 | Q77: 5.691536437e-207 | R77: 0 | T77: -2.838222813e-265 | U77: -1.592637532e-265 | W77: 25.33333333
A78: 77 | B78: 0 | C78: -1.286731643e-264 | D78: -1.344745099e-264 | E78: 0 | F78: -2 | G78: 1.28037037 | H78: 3.443543561e-264 | I78: -3.29498614e-264 | J78: 0.3164332575 | K78: 0.2963512865 | L78: 2.530990667e-206 | M78: -4.368338384e-206 | N78: 2.165041993e-206 | O78: -2.289877391e-207 | P78: 2.165041993e-206 | Q78: -2.289877391e-207 | R78: 0 | T78: -1.286731643e-264 | U78: -1.344745099e-264 | W78: 25.66666667
A79: 78 | B79: 0 | C79: -4.782474585e-264 | D79: -9.478947357e-264 | E79: 0 | F79: -2 | G79: 1.28037037 | H79: 2.427312668e-263 | I79: -1.224667751e-263 | J79: 0.3164332575 | K79: 0.2963512865 | L79: -2.626562023e-206 | M79: -1.134505702e-205 | N79: 3.283942768e-206 | O79: -3.79918474e-206 | P79: 3.283942768e-206 | Q79: -3.79918474e-206 | R79: 0 | T79: -4.782474585e-264 | U79: -9.478947357e-264 | W79: 26
A80: 79 | B80: 0 | C80: -1.029144609e-263 | D80: -5.953059239e-263 | E80: 0 | F80: -2 | G80: 1.28037037 | H80: 1.524424133e-262 | I80: -2.635372529e-263 | J80: 0.3164332575 | K80: 0.2963512865 | L80: -2.230998957e-205 | M80: -1.495880347e-205 | N80: -4.615200297e-207 | O80: -1.157404476e-205 | P80: -4.615200297e-207 | Q80: -1.157404476e-205 | R80: 0 | T80: -1.029144609e-263 | U80: -5.953059239e-263 | W80: 26.33333333
A81: 80 | B81: 0 | C81: 4.271836591e-263 | D81: -3.402375536e-262 | E81: 0 | F81: -2 | G81: 1.28037037 | H81: 8.71260165e-262 | I81: 1.0939066e-262 | J81: 0.3164332575 | K81: 0.2963512865 | L81: -6.114622586e-205 | M81: 9.992499696e-206 | N81: -1.90260468e-205 | O81: -1.875798821e-205 | P81: -1.90260468e-205 | Q81: -1.875798821e-205 | R81: 0 | T81: 4.271836591e-263 | U81: -3.402375536e-262 | W81: 26.66666667
A82: 81 | B82: 0 | C82: 7.934141462e-262 | D82: -1.77197748e-261 | E82: 0 | F82: -2 | G82: 1.28037037 | H82: 4.537574925e-261 | I82: 2.031727928e-261 | J82: 0.3164332575 | K82: 0.2963512865 | L82: -8.71883616e-205 | M82: 1.132336187e-204 | N82: -6.160774589e-205 | O82: -1.581545064e-206 | P82: -6.160774589e-205 | Q82: -1.581545064e-206 | R82: 0 | T82: 7.934141462e-262 | U82: -1.77197748e-261 | W82: 27
A83: 82 | B83: 0 | C83: 7.205992108e-261 | D83: -8.264690959e-261 | E83: 0 | F83: -2 | G83: 1.28037037 | H83: 2.116373085e-260 | I83: 1.845267757e-260 | J83: 0.3164332575 | K83: 0.2963512865 | L83: 3.175047297e-205 | M83: 3.281081326e-204 | N83: -1.062144084e-204 | O83: 9.44756305e-205 | P83: -1.062144084e-204 | Q83: 9.44756305e-205 | R83: 0 | T83: 7.205992108e-261 | U83: -8.264690959e-261 | W83: 27.33333333
A84: 83 | B84: 0 | C84: 5.241445445e-260 | D84: -3.268905436e-260 | E84: 0 | F84: -2 | G84: 1.28037037 | H84: 8.370819328e-260 | I84: 1.342198289e-259 | J84: 0.3164332575 | K84: 0.2963512865 | L84: 5.707892387e-204 | M84: 5.023302816e-204 | N84: -2.985727292e-205 | O84: 3.265265875e-204 | P84: -2.985727292e-205 | Q84: 3.265265875e-204 | R84: 0 | T84: 5.241445445e-260 | U84: -3.268905436e-260 | W84: 27.66666667
A85: 84 | B85: 0 | C85: 3.353272783e-259 | D85: -8.976215507e-260 | E85: 0 | F85: -2 | G85: 1.28037037 | H85: 2.298576075e-259 | I85: 8.586862231e-259 | J85: 0.3164332575 | K85: 0.2963512865 | L85: 1.752996813e-203 | M85: -5.426919842e-205 | N85: 4.645748303e-204 | O85: 5.968059121e-204 | P85: 4.645748303e-204 | Q85: 5.968059121e-204 | R85: 0 | T85: 3.353272783e-259 | U85: -8.976215507e-260 | W85: 28
A86: 85 | B86: 0 | C86: 1.944699813e-258 | D86: 6.718204271e-260 | E86: 0 | F86: -2 | G86: 1.28037037 | H86: -1.720357938e-259 | I86: 4.979872039e-258 | J86: 0.3164332575 | K86: 0.2963512865 | L86: 2.865719714e-203 | M86: -2.855353857e-203 | N86: 1.72313954e-203 | O86: 2.722573891e-204 | P86: 1.72313954e-203 | Q86: 2.722573891e-204 | R86: 0 | T86: 1.944699813e-258 | U86: 6.718204271e-260 | W86: 28.33333333
A87: 86 | B87: 0 | C87: 1.029104526e-257 | D87: 3.532047228e-258 | E87: 0 | F87: -2 | G87: 1.28037037 | H87: -9.044657234e-258 | I87: 2.635269887e-257 | J87: 0.3164332575 | K87: 0.2963512865 | L87: 3.225321388e-204 | M87: -9.325621128e-203 | N87: 3.330294544e-203 | O87: -2.258547945e-203 | P87: 3.330294544e-203 | Q87: -2.258547945e-203 | R87: 0 | T87: 1.029104526e-257 | U87: 3.532047228e-258 | W87: 28.66666667
A88: 87 | B88: 0 | C88: 4.915310076e-257 | D88: 3.55906831e-257 | E88: 0 | F88: -2 | G88: 1.28037037 | H88: -9.11385122e-257 | I88: 1.258683476e-256 | J88: 0.3164332575 | K88: 0.2963512865 | L88: -1.416090441e-202 | M88: -1.620884899e-202 | N88: 2.045671679e-203 | O88: -9.053363739e-203 | P88: 2.045671679e-203 | Q88: -9.053363739e-203 | R88: 0 | T88: 4.915310076e-257 | U88: 3.55906831e-257 | W88: 29
A89: 88 | B89: 0 | C89: 2.037937159e-256 | D89: 2.691893512e-256 | E89: 0 | F89: -2 | G89: 1.28037037 | H89: -6.893241387e-256 | I89: 5.218628711e-256 | J89: 0.3164332575 | K89: 0.2963512865 | L89: -4.939767095e-202 | M89: -4.960874428e-203 | N89: -1.083060987e-202 | O89: -1.846739694e-202 | P89: -1.083060987e-202 | Q89: -1.846739694e-202 | R89: 0 | T89: 2.037937159e-256 | U89: 2.691893512e-256 | W89: 29.33333333
A90: 89 | B90: 0 | C90: 6.458902596e-256 | D90: 1.758923986e-255 | E90: 0 | F90: -2 | G90: 1.28037037 | H90: -4.504148311e-255 | I90: 1.653957502e-255 | J90: 0.3164332575 | K90: 0.2963512865 | L90: -9.098619412e-202 | M90: 6.953441439e-202 | N90: -4.735199927e-202 | O90: -1.401423817e-202 | P90: -4.735199927e-202 | Q90: -1.401423817e-202 | R90: 0 | T90: 6.458902596e-256 | U90: 1.758923986e-255 | W90: 29.66666667
A91: 90 | B91: 0 | C91: 5.788811943e-256 | D91: 1.035675615e-254 | E91: 0 | F91: -2 | G91: 1.28037037 | H91: -2.652096743e-254 | I91: 1.482364658e-255 | J91: 0.3164332575 | K91: 0.2963512865 | L91: -4.354491338e-202 | M91: 2.605257303e-201 | N91: -1.01816804e-201 | O91: 5.106701745e-202 | P91: -1.01816804e-201 | Q91: 5.106701745e-202 | R91: 0 | T91: 5.788811943e-256 | U91: 1.035675615e-254 | W91: 30
A92: 91 | B92: 0 | C92: -1.362945543e-254 | D92: 5.563468263e-254 | E92: 0 | F92: -2 | G92: 1.28037037 | H92: -1.424659984e-253 | I92: -3.49015018e-254 | J92: 0.3164332575 | K92: 0.2963512865 | L92: 3.374657931e-201 | M92: 5.07270663e-201 | N92: -9.089691266e-202 | O92: 2.465114921e-201 | P92: -9.089691266e-202 | Q92: 2.465114921e-201 | R92: 0 | T92: -1.362945543e-254 | U92: 5.563468263e-254 | W92: 30.33333333
A93: 92 | B93: 0 | C93: -1.61223546e-253 | D93: 2.712105972e-253 | E93: 0 | F93: -2 | G93: 1.28037037 | H93: -6.945000255e-253 | I93: -4.128517026e-253 | J93: 0.3164332575 | K93: 0.2963512865 | L93: 1.367970826e-200 | M93: 3.219343933e-201 | N93: 2.356489891e-201 | O93: 5.583376805e-201 | P93: 2.356489891e-201 | Q93: 5.583376805e-201 | R93: 0 | T93: -1.61223546e-253 | U93: 2.712105972e-253 | W93: 30.66666667
A94: 93 | B94: 0 | C94: -1.282097633e-252 | D94: 1.166856515e-252 | E94: 0 | F94: -2 | G94: 1.28037037 | H94: -2.988017018e-252 | I94: -3.283119642e-252 | J94: 0.3164332575 | K94: 0.2963512865 | L94: 2.810671118e-200 | M94: -1.61491119e-200 | N94: 1.277073914e-200 | O94: 5.684458854e-201 | P94: 1.277073914e-200 | Q94: 5.684458854e-201 | R94: 0 | T94: -1.282097633e-252 | U94: 1.166856515e-252 | W94: 31
A95: 94 | B95: 0 | C95: -8.587153981e-252 | D95: 4.066713776e-252 | E95: 0 | F95: -2 | G95: 1.28037037 | H95: -1.041379965e-251 | I95: -2.198947505e-251 | J95: 0.3164332575 | K95: 0.2963512865 | L95: 2.185686971e-200 | M95: -7.150456794e-200 | N95: 3.046320107e-200 | O95: -1.05657351e-200 | P95: 3.046320107e-200 | Q95: -1.05657351e-200 | R95: 0 | T95: -8.587153981e-252 | U95: 4.066713776e-252 | W95: 31.33333333
A96: 95 | B96: 0 | C96: -5.139121647e-251 | D96: 7.567621498e-252 | E96: 0 | F96: -2 | G96: 1.28037037 | H96: -1.937871668e-251 | I96: -1.315995817e-250 | J96: 0.3164332575 | K96: 0.2963512865 | L96: -7.594530189e-200 | M96: -1.548449123e-199 | N96: 3.462760885e-200 | O96: -6.582010908e-200 | P96: 3.462760885e-200 | Q96: -6.582010908e-200 | R96: 0 | T96: -5.139121647e-251 | U96: 7.567621498e-252 | W96: 31.66666667
A97: 96 | B97: 0 | C97: -2.801062367e-250 | D97: -4.22998657e-251 | E97: 0 | F97: -2 | G97: 1.28037037 | H97: 1.083189894e-250 | I97: -7.17279452e-250 | J97: 0.3164332575 | K97: 0.2963512865 | L97: -3.720063112e-199 | M97: -1.409471424e-199 | N97: -4.548210082e-200 | O97: -1.654106474e-199 | P97: -4.548210082e-200 | Q97: -1.654106474e-199 | R97: 0 | T97: -2.801062367e-250 | U97: -4.22998657e-251 | W97: 32
A98: 97 | B98: 0 | C98: -1.390290301e-249 | D98: -6.646843024e-250 | E98: 0 | F98: -2 | G98: 1.28037037 | H98: 1.702084173e-249 | I98: -3.560173015e-249 | J98: 0.3164332575 | K98: 0.2963512865 | L98: -8.485318656e-199 | M98: 3.49256486e-199 | N98: -3.373787024e-199 | O98: -2.067672515e-199 | P98: -3.373787024e-199 | Q98: -2.067672515e-199 | R98: 0 | T98: -1.390290301e-249 | U98: -6.646843024e-250 | W98: 32.33333333
A99: 98 | B99: 0 | C99: -6.163431039e-249 | D99: -5.651003137e-249 | E99: 0 | F99: -2 | G99: 1.28037037 | H99: 1.447075396e-248 | I99: -1.578294896e-248 | J99: 0.3164332575 | K99: 0.2963512865 | L99: -8.778797635e-199 | M99: 1.925895173e-198 | N99: -8.940139664e-199 | O99: 1.838458386e-199 | P99: -8.940139664e-199 | Q99: 1.838458386e-199 | R99: 0 | T99: -6.163431039e-249 | U99: -5.651003137e-249 | W99: 32.66666667
A100: 99 | B100: 0 | C100: -2.298450629e-248 | D100: -3.899024929e-248 | E100: 0 | F100: -2 | G100: 1.28037037 | H100: 9.984391986e-248 | I100: -5.885736165e-248 | J100: 0.3164332575 | K100: 0.2963512865 | L100: 1.558631455e-198 | M100: 4.626545099e-198 | N100: -1.215258466e-198 | O100: 1.719127922e-198 | P100: -1.215258466e-198 | Q100: 1.719127922e-198 | R100: 0 | T100: -2.298450629e-248 | U100: -3.899024929e-248 | W100: 33
A101: 100 | B101: 0 | C101: -5.727384013e-248 | D101: -2.375646517e-247 | E101: 0 | F101: -2 | G101: 1.28037037 | H101: 6.083414821e-247 | I101: -1.466634558e-247 | J101: 0.3164332575 | K101: 0.2963512865 | L101: 9.918833935e-198 | M101: 5.331569491e-198 | N101: 6.646174886e-199 | O101: 4.810390937e-198 | P101: 6.646174886e-199 | Q101: 4.810390937e-198 | R101: 0 | T101: -5.727384013e-248 | U101: -2.375646517e-247 | W101: 33.33333333
A102: 101 | B102: 0 | C102: 7.827920673e-248 | D102: -1.313783248e-246 | E102: 0 | F102: -2 | G102: 1.28037037 | H102: 3.364258287e-246 | I102: 2.004527538e-247 | J102: 0.3164332575 | K102: 0.2963512865 | L102: 2.510542002e-197 | M102: -6.663187196e-198 | N102: 8.703575469e-198 | O102: 7.050697413e-198 | P102: 8.703575469e-198 | Q102: 7.050697413e-198 | R102: 0 | T102: 7.827920673e-248 | U102: -1.313783248e-246 | W102: 33.66666667
A103: 102 | B103: 0 | C103: 2.461607602e-246 | D103: -6.62816913e-246 | E103: 0 | F103: -2 | G103: 1.28037037 | H103: 1.697302273e-245 | I103: 6.303538875e-246 | J103: 0.3164332575 | K103: 0.2963512865 | L103: 3.176065864e-197 | M103: -5.080217981e-197 | N103: 2.577003751e-197 | O103: -1.852796259e-198 | P103: 2.577003751e-197 | Q103: -1.852796259e-198 | R103: 0 | T103: 2.461607602e-246 | U103: -6.62816913e-246 | W103: 34
A104: 103 | B104: 0 | C104: 2.298117091e-245 | D104: -3.012483025e-245 | E104: 0 | F104: -2 | G104: 1.28037037 | H104: 7.714188013e-245 | I104: 5.884882063e-245 | J104: 0.3164332575 | K104: 0.2963512865 | L104: -2.662970851e-197 | M104: -1.356065787e-196 | N104: 4.046423411e-197 | O104: -4.37514824e-197 | P104: 4.046423411e-197 | Q104: -4.37514824e-197 | R104: 0 | T104: 2.298117091e-245 | U104: -3.012483025e-245 | W104: 34.33333333
A105: 104 | B105: 0 | C105: 1.644852275e-244 | D105: -1.181807538e-244 | E105: 0 | F105: -2 | G105: 1.28037037 | H105: 3.026302711e-244 | I105: 4.212040233e-244 | J105: 0.3164332575 | K105: 0.2963512865 | L105: -2.586467211e-196 | M105: -1.863150878e-196 | N105: -8.596710026e-199 | O105: -1.37459375e-196 | P105: -8.596710026e-199 | Q105: -1.37459375e-196 | R105: 0 | T105: 1.644852275e-244 | U105: -1.181807538e-244 | W105: 34.66666667
A106: 105 | B106: 0 | C106: 1.02275717e-243 | D106: -3.468281359e-244 | E106: 0 | F106: -2 | G106: 1.28037037 | H106: 8.881369377e-244 | I106: 2.619015954e-243 | J106: 0.3164332575 | K106: 0.2963512865 | L106: -7.292160516e-196 | M106: 9.414000106e-197 | N106: -2.181824869e-196 | O106: -2.300665702e-196 | P106: -2.181824869e-196 | Q106: -2.300665702e-196 | R106: 0 | T106: 1.02275717e-243 | U106: -3.468281359e-244 | W106: 35
A107: 106 | B107: 0 | C107: 5.741390811e-243 | D107: -1.772113063e-244 | E107: 0 | F107: -2 | G107: 1.28037037 | H107: 4.537922118e-244 | I107: 1.470221336e-242 | J107: 0.3164332575 | K107: 0.2963512865 | L107: -1.079251314e-195 | M107: 1.308261716e-195 | N107: -7.300757226e-196 | O107: -4.33193739e-197 | P107: -7.300757226e-196 | Q107: -4.33193739e-197 | R107: 0 | T107: 5.741390811e-243 | U107: -1.772113063e-244 | W107: 35.33333333
A108: 107 | B108: 0 | C108: 2.940997433e-242 | D108: 7.988610513e-243 | E108: 0 | F108: -2 | G108: 1.28037037 | H108: -2.04567604e-242 | I108: 7.531131944e-242 | J108: 0.3164332575 | K108: 0.2963512865 | L108: 2.457729612e-196 | M108: 3.904224836e-195 | N108: -1.297433801e-195 | O108: 1.078195146e-195 | P108: -1.297433801e-195 | Q108: 1.078195146e-195 | R108: 0 | T108: 2.940997433e-242 | U108: 7.988610513e-243 | W108: 35.66666667
A109: 108 | B109: 0 | C109: 1.36537361e-241 | D109: 8.585243255e-242 | E109: 0 | F109: -2 | G109: 1.28037037 | H109: -2.198458217e-241 | I109: 3.49636783e-241 | J109: 0.3164332575 | K109: 0.2963512865 | L109: 6.569651036e-195 | M109: 6.185507538e-195 | N109: -4.843027614e-196 | O109: 3.860905462e-195 | P109: -4.843027614e-196 | Q109: 3.860905462e-195 | R109: 0 | T109: 1.36537361e-241 | U109: 8.585243255e-242 | W109: 36
A110: 109 | B110: 0 | C110: 5.571857394e-241 | D110: 6.438105646e-241 | E110: 0 | F110: -2 | G110: 1.28037037 | H110: -1.648631942e-240 | I110: 1.426808223e-240 | J110: 0.3164332575 | K110: 0.2963512865 | L110: 2.081326969e-194 | M110: 5.5203711e-197 | N110: 5.272217235e-195 | O110: 7.263702684e-195 | P110: 5.272217235e-195 | Q110: 7.263702684e-195 | R110: 0 | T110: 5.571857394e-241 | U110: 6.438105646e-241 | W110: 36.33333333
A111: 110 | B111: 0 | C111: 1.817207497e-240 | D111: 4.098812754e-240 | E111: 0 | F111: -2 | G111: 1.28037037 | H111: -1.049599681e-239 | I111: 4.653397271e-240 | J111: 0.3164332575 | K111: 0.2963512865 | L111: 3.512756954e-194 | M111: -3.272379394e-194 | N111: 2.032896693e-194 | O111: 3.916109173e-195 | P111: 2.032896693e-194 | Q111: 3.916109173e-195 | R111: 0 | T111: 1.817207497e-240 | U111: 4.098812754e-240 | W111: 36.66666667
A112: 111 | B112: 0 | C112: 2.847976203e-240 | D112: 2.337826148e-239 | E112: 0 | F112: -2 | G112: 1.28037037 | H112: -5.986566662e-239 | I112: 7.292928691e-240 | J112: 0.3164332575 | K112: 0.2963512865 | L112: 7.543293223e-195 | M112: -1.104790908e-193 | N112: 4.039978677e-194 | O112: -2.546009125e-194 | P112: 4.039978677e-194 | Q112: -2.546009125e-194 | R112: 0 | T112: 2.847976203e-240 | U112: 2.337826148e-239 | W112: 37
A113: 112 | B113: 0 | C113: -2.14679056e-239 | D113: 1.215171644e-238 | E113: 0 | F113: -2 | G113: 1.28037037 | H113: -3.111739536e-238 | I113: -5.497374048e-239 | J113: 0.3164332575 | K113: 0.2963512865 | L113: -1.614951375e-193 | M113: -1.978925968e-193 | N113: 2.787226015e-194 | O113: -1.065629816e-193 | P113: 2.787226015e-194 | Q113: -1.065629816e-193 | R113: 0 | T113: -2.14679056e-239 | U113: 1.215171644e-238 | W113: 37.33333333
A114: 113 | B114: 0 | C114: -2.926332292e-238 | D114: 5.74739854e-238 | E114: 0 | F114: -2 | G114: 1.28037037 | H114: -1.47175976e-237 | I114: -7.493578321e-238 | J114: 0.3164332575 | K114: 0.2963512865 | L114: -5.839093857e-193 | M114: -7.85325138e-194 | N114: -1.210953507e-193 | O114: -2.233526881e-193 | P114: -1.210953507e-193 | Q114: -2.233526881e-193 | R114: 0 | T114: -2.926332292e-238 | U114: 5.74739854e-238 | W114: 37.66666667
A115: 114 | B115: 0 | C115: -2.333539619e-237 | D115: 2.420867352e-237 | E115: 0 | F115: -2 | G115: 1.28037037 | H115: -6.199213656e-237 | I115: -5.975589972e-237 | J115: 0.3164332575 | K115: 0.2963512865 | L115: -1.106874338e-192 | M115: 7.884478456e-193 | N115: -5.560371255e-193 | O115: -1.850954954e-193 | P115: -5.560371255e-193 | Q115: -1.850954954e-193 | R115: 0 | T115: -2.333539619e-237 | U115: 2.420867352e-237 | W115: 38
A116: 115 | B116: 0 | C116: -1.528084003e-236 | D116: 8.500952961e-237 | E116: 0 | F116: -2 | G116: 1.28037037 | H116: -2.176873658e-236 | I116: -3.913026962e-236 | J116: 0.3164332575 | K116: 0.2963512865 | L116: -6.203340295e-193 | M116: 3.072637311e-192 | N116: -1.227969688e-192 | O116: 5.650951576e-193 | P116: -1.227969688e-192 | Q116: 5.650951576e-193 | R116: 0 | T116: -1.528084003e-236 | U116: 8.500952961e-237 | W116: 38.33333333
A117: 116 | B117: 0 | C117: -8.868690472e-236 | D117: 1.905066225e-236 | E117: 0 | F117: -2 | G117: 1.28037037 | H117: -4.878380696e-236 | I117: -2.271041701e-235 | J117: 0.3164332575 | K117: 0.2963512865 | L117: 3.80032005e-192 | M117: 6.151084087e-192 | N117: -1.176371155e-192 | O117: 2.887541815e-192 | P117: -1.176371155e-192 | Q117: 2.887541815e-192 | R117: 0 | T117: -8.868690472e-236 | U117: 1.905066225e-236 | W117: 38.66666667
A118: 117 | B118: 0 | C118: -4.677075752e-235 | D118: -3.961226802e-236 | E118: 0 | F118: -2 | G118: 1.28037037 | H118: 1.014367485e-235 | I118: -1.197677842e-234 | J118: 0.3164332575 | K118: 0.2963512865 | L118: 1.609663994e-191 | M118: 4.363713673e-192 | N118: 2.572350362e-192 | O118: 6.716179244e-192 | P118: 2.572350362e-192 | Q118: 6.716179244e-192 | R118: 0 | T118: -4.677075752e-235 | U118: -3.961226802e-236 | W118: 39
A119: 118 | B119: 0 | C119: -2.249421171e-234 | D119: -8.999565358e-235 | E119: 0 | F119: -2 | G119: 1.28037037 | H119: 2.304555366e-234 | I119: -5.760184436e-234 | J119: 0.3164332575 | K119: 0.2963512865 | L119: 3.398012952e-191 | M119: -1.803331758e-191 | N119: 1.492026878e-191 | O119: 7.251255488e-192 | P119: 1.492026878e-191 | Q119: 7.251255488e-192 | R119: 0 | T119: -2.249421171e-234 | U119: -8.999565358e-235 | W119: 39.33333333
A120: 119 | B120: 0 | C120: -9.725702654e-234 | D120: -7.811282859e-234 | E120: 0 | F120: -2 | G120: 1.28037037 | H120: 2.000267025e-233 | I120: -2.490500302e-233 | J120: 0.3164332575 | K120: 0.2963512865 | L120: 2.877429359e-191 | M120: -8.393749986e-191 | N120: 3.655247988e-191 | O120: -1.131713834e-191 | P120: 3.655247988e-191 | Q120: -1.131713834e-191 | R120: 0 | T120: -9.725702654e-234 | U120: -7.811282859e-234 | W120: 39.66666667
A121: 120 | B121: 0 | C121: -3.607096113e-233 | D121: -5.294640084e-233 | E121: 0 | F121: -2 | G121: 1.28037037 | H121: 1.355820057e-232 | I121: -9.236837973e-233 | J121: 0.3164332575 | K121: 0.2963512865 | L121: -8.390263012e-191 | M121: -1.866834351e-190 | N121: 4.369456238e-191 | O121: -7.668624437e-191 | P121: 4.369456238e-191 | Q121: -7.668624437e-191 | R121: 0 | T121: -3.607096113e-233 | U121: -5.294640084e-233 | W121: 40
A122: 121 | B122: 0 | C122: -9.760821478e-233 | D122: -3.133627107e-232 | E122: 0 | F122: -2 | G122: 1.28037037 | H122: 8.024406599e-232 | I122: -2.499493322e-232 | J122: 0.3164332575 | K122: 0.2963512865 | L122: -4.356034927e-190 | M122: -1.820029287e-190 | N122: -4.735015024e-191 | O122: -1.980005734e-190 | P122: -4.735015024e-191 | Q122: -1.980005734e-190 | R122: 0 | T122: -9.760821478e-233 | U122: -3.133627107e-232 | W122: 40.33333333
A123: 122 | B123: 0 | C123: -9.854775645e-234 | D123: -1.677222615e-231 | E123: 0 | F123: -2 | G123: 1.28037037 | H123: 4.294932283e-231 | I123: -2.523552548e-233 | J123: 0.3164332575 | K123: 0.2963512865 | L123: -1.020335513e-189 | M123: 3.80411383e-190 | N123: -3.919089304e-190 | O123: -2.586891731e-190 | P123: -3.919089304e-190 | Q123: -2.586891731e-190 | R123: 0 | T123: -9.854775645e-234 | U123: -1.677222615e-231 | W123: 40.66666667
A124: 123 | B124: 0 | C124: 2.446551231e-231 | D124: -8.192268372e-231 | E124: 0 | F124: -2 | G124: 1.28037037 | H124: 2.097827538e-230 | I124: 6.264983413e-231 | J124: 0.3164332575 | K124: 0.2963512865 | L124: -1.118000069e-189 | M124: 2.249233053e-189 | N124: -1.067685663e-189 | O124: 1.824108096e-190 | P124: -1.067685663e-189 | Q124: 1.824108096e-190 | R124: 0 | T124: 2.446551231e-231 | U124: -8.192268372e-231 | W124: 41
A125: 124 | B125: 0 | C125: 2.4053095e-230 | D125: -3.621342897e-230 | E125: 0 | F125: -2 | G125: 1.28037037 | H125: 9.273320292e-230 | I125: 6.159374031e-230 | J125: 0.3164332575 | K125: 0.2963512865 | L125: 1.664186732e-189 | M125: 5.549508885e-189 | N125: -1.509908999e-189 | O125: 1.99054388e-189 | P125: -1.509908999e-189 | Q125: 1.99054388e-189 | R125: 0 | T125: 2.4053095e-230 | U125: -3.621342897e-230 | W125: 41.33333333
A126: 125 | B126: 0 | C126: 1.70283467e-229 | D126: -1.400879912e-229 | E126: 0 | F126: -2 | G126: 1.28037037 | H126: 3.587290265e-229 | I126: 4.360518115e-229 | J126: 0.3164332575 | K126: 0.2963512865 | L126: 1.155180028e-188 | M126: 6.719009336e-189 | N126: 5.965010687e-190 | O126: 5.731919695e-189 | P126: 5.965010687e-190 | Q126: 5.731919695e-189 | R126: 0 | T126: 1.70283467e-229 | U126: -1.400879912e-229 | W126: 41.66666667
A127: 126 | B127: 0 | C127: 1.030846766e-228 | D127: -4.265445736e-229 | E127: 0 | F127: -2 | G127: 1.28037037 | H127: 1.092270067e-228 | I127: 2.639731312e-228 | J127: 0.3164332575 | K127: 0.2963512865 | L127: 3.00422343e-188 | M127: -6.902073015e-189 | N127: 1.004189128e-188 | O127: 8.709553216e-189 | P127: 1.004189128e-188 | Q127: 8.709553216e-189 | R127: 0 | T127: 1.030846766e-228 | U127: -4.265445736e-229 | W127: 42
A128: 127 | B128: 0 | C128: 5.604179041e-228 | D128: -5.410404277e-229 | E128: 0 | F128: -2 | G128: 1.28037037 | H128: 1.385464266e-228 | I128: 1.435084959e-227 | J128: 0.3164332575 | K128: 0.2963512865 | L128: 3.969545853e-188 | M128: -5.898834202e-188 | N128: 3.063873537e-188 | O128: -1.170153321e-189 | P128: 3.063873537e-188 | Q128: -1.170153321e-189 | R128: 0 | T128: 5.604179041e-228 | U128: -5.410404277e-229 | W128: 42.33333333
A129: 128 | B129: 0 | C129: 2.77795056e-227 | D129: 5.626601562e-228 | E129: 0 | F129: -2 | G129: 1.28037037 | H129: -1.440826785e-227 | I129: 7.113611175e-227 | J129: 0.3164332575 | K129: 0.2963512865 | L129: -2.617824255e-188 | M129: -1.618995e-187 | N129: 4.973734981e-188 | O129: -5.027878881e-188 | P129: 4.973734981e-188 | Q129: -5.027878881e-188 | R129: 0 | T129: 2.77795056e-227 | U129: 5.626601562e-228 | W129: 42.66666667
A130: 129 | B130: 0 | C130: 1.251835729e-226 | D130: 6.772753784e-227 | E130: 0 | F130: -2 | G130: 1.28037037 | H130: -1.734326654e-226 | I130: 3.205626751e-226 | J130: 0.3164332575 | K130: 0.2963512865 | L130: -2.993432664e-187 | M130: -2.312928118e-187 | N130: 4.460492815e-189 | O130: -1.630696533e-187 | P130: 4.460492815e-189 | Q130: -1.630696533e-187 | R130: 0 | T130: 1.251835729e-226 | U130: 6.772753784e-227 | W130: 43
A131: 130 | B131: 0 | C131: 5.007811377e-226 | D131: 5.074501928e-226 | E131: =C131^2+D131^2 -> 0 | F131: =-2-0.2626*B131/9 -> -2 | G131: =3.457/2.7 -> 1.28037037 | H131: =-2*G131*D131 -> -1.299448383e-225 | I131: =2*G131*C131 -> 1.282370662e-225 | J131: =(-F131-J132)/((F131+J132)^2+(G131+K132)^2) -> 0.3164332575 | K131: =(G131+K132)/((F131+J132)^2+(G131+K132)^2) -> 0.2963512865 | L131: =J132*(L132-H132)-K132*(M132-I132) -> -8.686487533e-187 | M131: =J132*(M132-I132)+K132*(L132-H132) -> 8.258412519e-188 | N131: -2.496059166e-187 | O131: -2.815716006e-187 | P131: -2.496059166e-187 | Q131: -2.815716006e-187 | R131: 0 | T131: 5.007811377e-226 | U131: 5.074501928e-226 | W131: 43.33333333
A132: =A131+1 -> 131 | B132: 0 | C132: 1.653497863e-225 | D132: 3.155259122e-225 | E132: 0 | F132: -2 | G132: 1.28037037 | H132: -8.079800582e-225 | I132: 4.234179342e-225 | J132: 0.3164332575 | K132: 0.2963512865 | L132: -1.332215973e-186 | M132: 1.508653188e-186 | N132: =J132*N131-K132*O131+L131 -> -8.641882605e-187 | O132: =J132*O131+K132*N131+M131 -> -8.04855281e-188 | P132: =N132-C132 -> -8.641882605e-187 | Q132: =O132-D132 -> -8.04855281e-188 | R132: =P132^2+Q132^2 -> 0 | T132: =(EXP(-(($A132-$Z$4)^2/$Z$3))*COS($Z$2*$A132/3)) -> 1.653497863e-225 | U132: =(EXP(-(($A132-$Z$4)^2/$Z$3))*SIN($Z$2*$A132/3)) -> 3.155259122e-225 | W132: =A132/3 -> 43.66666667
A133: 132 | B133: 0 | C133: 3.294037966e-225 | D133: 1.744637344e-224 | E133: 0 | F133: -2 | G133: 1.28037037 | H133: -4.467563923e-224 | I133: 8.435177222e-225 | J133: 0.3164332575 | K133: 0.2963512865 | L133: 1.35851648e-187 | M133: 4.64045211e-186 | N133: -1.58182189e-186 | O133: 1.227081588e-186 | P133: -1.58182189e-186 | Q133: 1.227081588e-186 | R133: 0 | T133: 3.294037966e-225 | U133: 1.744637344e-224 | W133: 44
A134: 133 | B134: 0 | C134: -9.643855892e-225 | D134: 8.774121473e-224 | E134: 0 | F134: -2 | G134: 1.28037037 | H134: -2.246825032e-223 | I134: -2.469541468e-224 | J134: 0.3164332575 | K134: 0.2963512865 | L134: 7.545416657e-186 | M134: 7.598310608e-186 | N134: -7.283366125e-187 | O134: 4.559966582e-186 | P134: -7.283366125e-187 | Q134: 4.559966582e-186 | R134: 0 | T134: -9.643855892e-225 | U134: 8.774121473e-224 | W134: 44.33333333
A135: 134 | B135: 0 | C135: -1.727060938e-223 | D135: 4.022398326e-223 | E135: 0 | F135: -2 | G135: 1.28037037 | H135: -1.030031927e-222 | I135: -4.422555306e-223 | J135: 0.3164332575 | K135: 0.2963512865 | L135: 2.468363343e-185 | M135: 8.952411857e-187 | N135: 5.963594767e-186 | O135: 8.825392195e-186 | P135: 5.963594767e-186 | Q135: 8.825392195e-186 | R135: 0 | T135: -1.727060938e-223 | U135: 4.022398326e-223 | W135: 44.66666667
A136: 135 | B136: 0 | C136: -1.397759903e-222 | D136: 1.653952159e-222 | E136: 0 | F136: -2 | G136: 1.28037037 | H136: -4.235342676e-222 | I136: -3.579300728e-222 | J136: 0.3164332575 | K136: 0.2963512865 | L136: 4.29680905e-185 | M136: -3.741202112e-185 | N136: 2.395529682e-185 | O136: 5.455207768e-186 | P136: 2.395529682e-185 | Q136: 5.455207768e-186 | R136: 0 | T136: -1.397759903e-222 | U136: 1.653952159e-222 | W136: 45
A137: 136 | B137: 0 | C137: -8.978434801e-222 | D137: 5.79381526e-222 | E137: 0 | F137: -2 | G137: 1.28037037 | H137: -1.483645878e-221 | I137: -2.299144378e-221 | J137: 0.3164332575 | K137: 0.2963512865 | L137: 1.335130423e-185 | M137: -1.307343534e-184 | N137: 4.893168526e-185 | O137: -2.858662892e-185 | P137: 4.893168526e-185 | Q137: -2.858662892e-185 | R137: 0 | T137: -8.978434801e-222 | U137: 5.79381526e-222 | W137: 45.33333333
A138: 137 | B138: 0 | C138: -5.059135269e-221 | D138: 1.438253879e-221 | E138: 0 | F138: -2 | G138: 1.28037037 | H138: -3.682995305e-221 | I138: -1.29551338e-220 | J138: 0.3164332575 | K138: 0.2963512865 | L138: -1.836538745e-184 | M138: -2.411512999e-184 | N138: 3.730660105e-185 | O138: -1.252791456e-184 | P138: 3.730660105e-185 | Q138: -1.252791456e-184 | R138: 0 | T138: -5.059135269e-221 | U138: 1.438253879e-221 | W138: 45.66666667
A139: 138 | B139: 0 | C139: -2.581931997e-220 | D139: -4.933279854e-222 | E139: 0 | F139: -2 | G139: 1.28037037 | H139: 1.263285071e-221 | I139: -6.611658453e-220 | J139: 0.3164332575 | K139: 0.2963512865 | L139: -6.894220324e-184 | M139: -1.164232672e-184 | N139: -1.347221892e-184 | O139: -2.697379289e-184 | P139: -1.347221892e-184 | Q139: -2.697379289e-184 | R139: 0 | T139: -2.581931997e-220 | U139: -4.933279854e-222 | W139: 46
A140: 139 | B140: 0 | C140: -1.202458275e-219 | D140: -3.920733408e-220 | E140: 0 | F140: -2 | G140: 1.28037037 | H140: 1.003998177e-219 | I140: -3.079183893e-219 | J140: 0.3164332575 | K140: 0.2963512865 | L140: -1.344255092e-183 | M140: 8.910203084e-184 | N140: -6.521154314e-184 | O140: -2.417024128e-184 | P140: -6.521154314e-184 | Q140: -2.417024128e-184 | R140: 0 | T140: -1.202458275e-219 | U140: -3.920733408e-220 | W140: 46.33333333
A141: 140 | B141: 0 | C141: -5.059978468e-219 | D141: -3.546131587e-219 | E141: 0 | F141: -2 | G141: 1.28037037 | H141: 9.080723627e-219 | I141: -1.295729301e-218 | J141: 0.3164332575 | K141: 0.2963512865 | L141: -8.582521496e-184 | M141: 3.619608274e-183 | N141: -1.478977281e-183 | O141: 6.212823795e-184 | P141: -1.478977281e-183 | Q141: 6.212823795e-184 | R141: 0 | T141: -5.059978468e-219 | U141: -3.546131587e-219 | W141: 46.66666667
A142: 141 | B142: 0 | C142: -1.854306617e-218 | D142: -2.372377733e-218 | E142: 0 | F142: -2 | G142: 1.28037037 | H142: 6.075044314e-218 | I142: -4.748398499e-218 | J142: 0.3164332575 | K142: 0.2963512865 | L142: 4.26218998e-183 | M142: 7.447076863e-183 | N142: -1.510367581e-183 | O142: 3.377905861e-183 | P142: -1.510367581e-183 | Q142: 3.377905861e-183 | R142: 0 | T142: -1.854306617e-218 | U142: -2.372377733e-218 | W142: 47
A143: 142 | B143: 0 | C143: -5.256763471e-218 | D143: -1.366042542e-217 | E143: 0 | F143: -2 | G143: 1.28037037 | H143: 3.498080791e-217 | I143: -1.346120839e-217 | J143: 0.3164332575 | K143: 0.2963512865 | L143: 1.891764867e-182 | M143: 5.817363688e-183 | N143: 2.783212698e-183 | O143: 8.068359242e-183 | P143: 2.783212698e-183 | Q143: 8.068359242e-183 | R143: 0 | T143: -5.256763471e-218 | U143: -1.366042542e-217 | W143: 47.33333333
A144: 143 | B144: 0 | C144: -5.05353331e-218 | D144: -7.079290983e-217 | E144: 0 | F144: -2 | G144: 1.28037037 | H144: 1.812822884e-216 | I144: -1.294078863e-217 | J144: 0.3164332575 | K144: 0.2963512865 | L144: 4.102148746e-182 | M144: -2.003394632e-182 | N144: 1.740728109e-182 | O144: 9.19526955e-183 | P144: 1.740728109e-182 | Q144: 9.19526955e-183 | R144: 0 | T144: -5.05353331e-218 | U144: -7.079290983e-217 | W144: 47.66666667
A145: 144 | B145: 0 | C145: 7.652858656e-217 | D145: -3.346422522e-216 | E145: 0 | F145: -2 | G145: 1.28037037 | H145: 8.569320489e-216 | I145: 1.959698694e-216 | J145: 0.3164332575 | K145: 0.2963512865 | L145: 3.747445498e-182 | M145: -9.840795342e-182 | N145: 4.380470016e-182 | O145: -1.196558708e-182 | P145: 4.380470016e-182 | Q145: -1.196558708e-182 | R145: 0 | T145: 7.652858656e-217 | U145: -3.346422522e-216 | W145: 48
A146: 145 | B146: 0 | C146: 8.242523837e-216 | D146: -1.436562434e-215 | E146: 0 | F146: -2 | G146: 1.28037037 | H146: 3.678663952e-215 | I146: 2.11069666e-215 | J146: 0.3164332575 | K146: 0.2963512865 | L146: -9.207120527e-182 | M146: -2.247631423e-181 | N146: 5.488173607e-182 | O146: -8.921268387e-182 | P146: 5.488173607e-182 | Q146: -8.921268387e-182 | R146: 0 | T146: 8.242523837e-216 | U146: -1.436562434e-215 | W146: 48.33333333
A147: 146 | B147: 0 | C147: 5.811497382e-215 | D147: -5.455404473e-215 | E147: 0 | F147: -2 | G147: 1.28037037 | H147: 1.396987649e-214 | I147: 1.488173811e-214 | J147: 0.3164332575 | K147: 0.2963512865 | L147: -5.093969333e-181 | M147: -2.33233088e-181 | N147: -4.826650511e-182 | O147: -2.367287294e-181 | P147: -4.826650511e-182 | Q147: -2.367287294e-181 | R147: 0 | T147: 5.811497382e-215 | U147: -5.455404473e-215 | W147: 48.66666667
A148: 147 | B148: 0 | C148: 3.432644835e-214 | D148: -1.690954049e-214 | E148: 0 | F148: -2 | G148: 1.28037037 | H148: 4.330094924e-214 | I148: 8.790113478e-214 | J148: 0.3164332575 | K148: 0.2963512865 | L148: -1.225347397e-180 | M148: 4.105137064e-181 | N148: -4.545151972e-181 | O148: -3.224457719e-181 | P148: -4.545151972e-181 | Q148: -3.224457719e-181 | R148: 0 | T148: 3.432644835e-214 | U148: -1.690954049e-214 | W148: 49
A149: 148 | B149: 0 | C149: 1.808513124e-213 | D149: -2.948866169e-214 | E149: 0 | F149: -2 | G149: 1.28037037 | H149: 7.551281737e-214 | I149: 4.631133238e-213 | J149: 0.3164332575 | K149: 0.2963512865 | L149: -1.415688274e-180 | M149: 2.623159001e-180 | N149: -1.273613902e-180 | O149: 1.73784977e-181 | P149: -1.273613902e-180 | Q149: 1.73784977e-181 | R149: 0 | T149: 1.808513124e-213 | U149: -2.948866169e-214 | W149: 49.33333333
A150: 149 | B150: 0 | C150: 8.673814008e-213 | D150: 1.173301284e-213 | E150: 0 | F150: -2 | G150: 1.28037037 | H150: -3.0045204e-213 | I150: 2.221138891e-212 | J150: 0.3164332575 | K150: 0.2963512865 | L150: 1.752585911e-180 | M150: 6.648409615e-180 | N150: -1.870203471e-180 | O150: 2.300713229e-180 | P150: -1.870203471e-180 | Q150: 2.300713229e-180 | R150: 0 | T150: 8.673814008e-213 | U150: 1.173301284e-213 | W150: 49.66666667
A151: 150 | B151: 0 | C151: 3.78991865e-212 | D151: 1.740608639e-212 | E151: 0 | F151: -2 | G151: 1.28037037 | H151: -4.457247457e-212 | I151: 9.704999092e-212 | J151: 0.3164332575 | K151: 0.2963512865 | L151: 1.343328678e-179 | M151: 8.429701157e-180 | N151: 4.789720091e-181 | O151: 6.822194592e-180 | P151: 4.789720091e-181 | Q151: 6.822194592e-180 | R151: 0 | T151: 3.78991865e-212 | U151: 1.740608639e-212 | W151: 50
A152: 151 | B152: 0 | C152: 1.481534345e-211 | D152: 1.316871851e-211 | E152: 0 | F152: -2 | G152: 1.28037037 | H152: -3.3721674e-211 | I152: 3.793825355e-211 | J152: 0.3164332575 | K152: 0.2963512865 | L152: 3.590712723e-179 | M152: -6.988589666e-180 | N152: 1.156308331e-179 | O152: 1.073041439e-179 | P152: 1.156308331e-179 | Q152: 1.073041439e-179 | R152: 0 | T152: 1.481534345e-211 | U152: 1.316871851e-211 | W152: 50.33333333
A153: 152 | B153: 0 | C153: 4.896666335e-211 | D153: 8.021071921e-211 | E153: 0 | F153: -2 | G153: 1.28037037 | H153: -2.053988565e-210 | I153: 1.253909298e-210 | J153: 0.3164332575 | K153: 0.2963512865 | L153: 4.943298455e-179 | M153: -6.838130228e-179 | N153: 3.638609924e-179 | O153: -1.663950742e-181 | P153: 3.638609924e-179 | Q153: -1.663950742e-181 | R153: 0 | T153: 4.896666335e-211 | U153: 8.021071921e-211 | W153: 50.66666667
A154: 153 | B154: 0 | C154: 1.108147666e-210 | D154: 4.303916676e-210 | E154: 0 | F154: -2 | G154: 1.28037037 | H154: -1.102121478e-209 | I154: 2.837678876e-210 | J154: 0.3164332575 | K154: 0.2963512865 | L154: -2.459455146e-179 | M154: -1.930665436e-178 | N154: 6.099606786e-179 | O154: -5.76508879e-179 | P154: 6.099606786e-179 | Q154: -5.76508879e-179 | R154: 0 | T154: 1.108147666e-210 | U154: 4.303916676e-210 | W154: 51
A155: 154 | B155: 0 | C155: -9.239524484e-211 | D155: 2.094494816e-209 | E155: 0 | F155: -2 | G155: 1.28037037 | H155: -5.363458205e-209 | I155: -2.366002677e-210 | J155: 0.3164332575 | K155: 0.2963512865 | L155: -3.458187695e-178 | M155: -2.8626165e-178 | N155: 1.179154778e-179 | O155: -1.932329387e-178 | P155: 1.179154778e-179 | Q155: -1.932329387e-178 | R155: 0 | T155: -9.239524484e-211 | U155: 2.094494816e-209 | W155: 51.33333333
A156: 155 | B156: 0 | C156: -3.291570544e-209 | D156: 9.300098196e-209 | E156: 0 | F156: -2 | G156: 1.28037037 | H156: -2.381514034e-208 | I156: -8.428858793e-209 | J156: 0.3164332575 | K156: 0.2963512865 | L156: -1.033563922e-177 | M156: 6.33193495e-179 | N156: -2.848227016e-178 | O156: -3.439125379e-178 | P156: -2.848227016e-178 | Q156: -3.439125379e-178 | R156: 0 | T156: -3.291570544e-209 | U156: 9.300098196e-209 | W156: 51.66666667
A157: 156 | B157: 0 | C157: -2.751483224e-208 | D157: 3.724560292e-208 | E157: 0 | F157: -2 | G157: 1.28037037 | H157: -9.537633281e-208 | I157: -7.045835189e-208 | J157: 0.3164332575 | K157: 0.2963512865 | L157: -1.640236856e-177 | M157: 1.736244971e-177 | N157: -1.021772375e-177 | O157: -1.299135892e-178 | P157: -1.021772375e-177 | Q157: -1.299135892e-178 | R157: 0 | T157: -2.751483224e-208 | U157: 3.724560292e-208 | W157: 52
A158: 157 | B158: 0 | C158: -1.741045124e-207 | D158: 1.292107619e-207 | E158: 0 | F158: -2 | G158: 1.28037037 | H158: -3.308752621e-207 | I158: -4.45836518e-207 | J158: 0.3164332575 | K158: 0.2963512865 | L158: -2.387317345e-179 | M158: 5.509281264e-177 | N158: -1.925059558e-177 | O158: 1.392332433e-177 | P158: -1.925059558e-177 | Q158: 1.392332433e-177 | R158: 0 | T158: -1.741045124e-207 | U158: 1.292107619e-207 | W158: 52.33333333
A159: 158 | B159: 0 | C159: -9.538381435e-207 | D159: 3.399525086e-207 | E159: 0 | F159: -2 | G159: 1.28037037 | H159: -8.705302388e-207 | I159: -2.442532194e-206 | J159: 0.3164332575 | K159: 0.2963512865 | L159: 8.646411002e-177 | M159: 9.312884061e-177 | N159: -1.045645548e-177 | O159: 5.379367675e-177 | P159: -1.045645548e-177 | Q159: 5.379367675e-177 | R159: 0 | T159: -9.538381435e-207 | U159: 3.399525086e-207 | W159: 52.66666667
A160: 159 | B160: 0 | C160: -4.712448788e-206 | D160: 2.182652658e-207 | E160: 0 | F160: -2 | G160: 1.28037037 | H160: -5.589207584e-207 | I160: -1.20673596e-205 | J160: 0.3164332575 | K160: 0.2963512865 | L160: 2.924063599e-176 | M160: 2.045878401e-177 | N160: 6.721351444e-177 | O160: 1.070521649e-176 | P160: 6.721351444e-177 | Q160: 1.070521649e-176 | R160: 0 | T160: -4.712448788e-206 | U160: 2.182652658e-207 | W160: 53
A161: 160 | B161: 0 | C161: -2.124238897e-205 | D161: -5.419590396e-206 | E161: 0 | F161: -2 | G161: 1.28037037 | H161: 1.387816592e-205 | I161: -5.439625087e-205 | J161: 0.3164332575 | K161: 0.2963512865 | L161: 5.245434306e-176 | M161: -4.265997119e-176 | N161: 2.819499044e-176 | O161: 7.425246075e-177 | P161: 2.819499044e-176 | Q161: 7.425246075e-177 | R161: 0 | T161: -2.124238897e-205 | U161: -5.419590396e-206 | W161: 53.33333333
A162: 161 | B162: 0 | C162: -8.685461604e-205 | D162: -5.276079279e-205 | E162: 0 | F162: -2 | G162: 1.28037037 | H162: 1.351067116e-204 | I162: -2.224121538e-204 | J162: 0.3164332575 | K162: 0.2963512865 | L162: 2.104748702e-176 | M162: -1.545268074e-175 | N162: 5.917569451e-176 | O162: -3.19547547e-176 | P162: 5.917569451e-176 | Q162: -3.19547547e-176 | R162: 0 | T162: -8.685461604e-205 | U162: -5.276079279e-205 | W162: 53.66666667
A163: 162 | B163: 0 | C163: -3.129526787e-204 | D163: -3.505291944e-204 | E163: 0 | F163: -2 | G163: 1.28037037 | H163: 8.976143889e-204 | I163: -8.013906744e-204 | J163: 0.3164332575 | K163: 0.2963512865 | L163: -2.082109147e-175 | M163: -2.933422224e-175 | N163: 4.924247747e-176 | O163: -1.471015614e-175 | P163: 4.924247747e-176 | Q163: -1.471015614e-175 | R163: 0 | T163: -3.129526787e-204 | U163: -3.505291944e-204 | W163: 54
A164: 163 | B164: 0 | C164: -9.089118867e-204 | D164: -1.96760272e-203 | E164: 0 | F164: -2 | G164: 1.28037037 | H164: 5.038520448e-203 | I164: -2.327487698e-203 | J164: 0.3164332575 | K164: 0.2963512865 | L164: -8.130560064e-175 | M164: -1.655705515e-175 | N164: -1.490352202e-175 | O164: -3.252969771e-175 | P164: -1.490352202e-175 | Q164: -3.252969771e-175 | R164: 0 | T164: -9.089118867e-204 | U164: -1.96760272e-203 | W164: 54.33333333
A165: 164 | B165: 0 | C165: -1.358447914e-203 | D165: -9.878965222e-203 | E165: 0 | F165: -2 | G165: 1.28037037 | H165: 2.529746872e-202 | I165: -3.478632919e-203 | J165: 0.3164332575 | K165: 0.2963512865 | L165: -1.629892726e-174 | M165: 1.00321394e-174 | N165: -7.638135289e-175 | O165: -3.126721129e-175 | P165: -7.638135289e-175 | Q165: -3.126721129e-175 | R165: 0 | T165: -1.358447914e-203 | U165: -9.878965222e-203 | W165: 54.66666667
A166: 165 | B166: 0 | C166: 7.2656306e-203 | D166: -4.518477318e-202 | E166: 0 | F166: -2 | G166: 1.28037037 | H166: 1.157064895e-201 | I166: 1.860539629e-202 | J166: 0.3164332575 | K166: 0.2963512865 | L166: -1.162244043e-174 | M166: 4.258864784e-174 | N166: -1.778927947e-174 | O166: 6.779169624e-175 | P166: -1.778927947e-174 | Q166: 6.779169624e-175 | R166: 0 | T166: 7.2656306e-203 | U166: -4.518477318e-202 | W166: 55
A167: 166 | B167: 0 | C167: 9.21696362e-202 | D167: -1.881473081e-201 | E167: 0 | F167: -2 | G167: 1.28037037 | H167: 4.817964772e-201 | I167: 2.360225425e-201 | J167: 0.3164332575 | K167: 0.2963512865 | L167: 4.758328921e-174 | M167: 9.002618465e-174 | N167: -1.926057572e-174 | O167: 3.946192672e-174 | P167: -1.926057572e-174 | Q167: 3.946192672e-174 | R167: 0 | T167: 9.21696362e-202 | U167: -1.881473081e-201 | W167: 55.33333333
A168: 167 | B168: 0 | C168: 6.532684106e-201 | D168: -6.989832202e-201 | E168: 0 | F168: -2 | G168: 1.28037037 | H168: 1.789914809e-200 | I168: 1.672851034e-200 | J168: 0.3164332575 | K168: 0.2963512865 | L168: 2.220558782e-173 | M168: 7.653948783e-174 | N168: 2.979400975e-174 | O168: 9.680535428e-174 | P168: 2.979400975e-174 | Q168: 9.680535428e-174 | R168: 0 | T168: 6.532684106e-201 | U168: -6.989832202e-201 | W168: 55.66666667
A169: 168 | B169: 0 | C169: 3.775231911e-200 | D169: -2.1771522e-200 | E169: 0 | F169: -2 | G169: 1.28037037 | H169: 5.575122337e-200 | I169: 9.667390161e-200 | J169: 0.3164332575 | K169: 0.2963512865 | L169: 4.945273597e-173 | M169: -2.212609761e-173 | N169: 2.027953025e-173 | O169: 1.160014145e-173 | P169: 2.027953025e-173 | Q169: 1.160014145e-173 | R169: 0 | T169: 3.775231911e-200 | U169: -2.1771522e-200 | W169: 56
A170: 169 | B170: 0 | C170: 1.929362992e-199 | D170: -4.456882283e-200 | E170: 0 | F170: -2 | G170: 1.28037037 | H170: 1.141292004e-199 | I170: 4.940598417e-199 | J170: 0.3164332575 | K170: 0.2963512865 | L170: 4.837028432e-173 | M170: -1.152239619e-172 | N170: 5.243213694e-173 | O170: -1.244556218e-173 | P170: 5.243213694e-173 | Q170: -1.244556218e-173 | R170: 0 | T170: 1.929362992e-199 | U170: -4.456882283e-200 | W170: 56.33333333
A171: 170 | B171: 0 | C171: 8.953518835e-199 | D171: 6.193597722e-200 | E171: 0 | F171: -2 | G171: 1.28037037 | H171: -1.586019802e-199 | I171: 2.292764045e-198 | J171: 0.3164332575 | K171: 0.2963512865 | L171: -1.002415141e-172 | M171: -2.70253705e-172 | N171: 6.864981457e-173 | O171: -1.036238204e-172 | P171: 6.864981457e-173 | Q171: -1.036238204e-172 | R171: 0 | T171: 8.953518835e-199 | U171: 6.193597722e-200 | W171: 56.66666667
A172: 171 | B172: 0 | C172: 3.790108034e-198 | D172: 1.448937894e-198 | E172: 0 | F172: -2 | G172: 1.28037037 | H172: -3.710354296e-198 | I172: 9.705484054e-198 | J172: 0.3164332575 | K172: 0.2963512865 | L172: -5.948781487e-172 | M172: -2.969371836e-172 | N172: -4.780937711e-173 | O172: -2.826992671e-172 | P172: -4.780937711e-173 | Q172: -2.826992671e-172 | R172: 0 | T172: 3.790108034e-198 | U172: 1.448937894e-198 | W172: 57
A173: 172 | B173: 0 | C173: 1.444221694e-197 | D173: 1.123730883e-197 | E173: 0 | F173: -2 | G173: 1.28037037 | H173: -2.877583453e-197 | I173: 3.698277332e-197 | J173: 0.3164332575 | K173: 0.2963512865 | L173: -1.469704355e-171 | M173: 4.380436934e-172 | N173: -5.262283342e-172 | O173: -4.00561004e-172 | P173: -5.262283342e-172 | Q173: -4.00561004e-172 | R173: 0 | T173: 1.444221694e-197 | U173: 1.123730883e-197 | W173: 57.33333333
A174: 173 | B174: 0 | C174: 4.739186549e-197 | D174: 6.730810495e-197 | E174: 0 | F174: -2 | G174: 1.28037037 | H174: -1.723586065e-196 | I174: 1.213582807e-196 | J174: 0.3164332575 | K174: 0.2963512865 | L174: -1.783672396e-171 | M174: 3.05479048e-171 | N174: -1.517513732e-171 | O174: 1.553444263e-172 | P174: -1.517513732e-171 | Q174: 1.553444263e-172 | R174: 0 | T174: 4.739186549e-197 | U174: 6.730810495e-197 | W174: 57.66666667
A175: 174 | B175: 0 | C175: 1.15281318e-196 | D175: 3.509386541e-196 | E175: 0 | F175: -2 | G175: 1.28037037 | H175: -8.986629091e-196 | I175: 2.952055678e-196 | J175: 0.3164332575 | K175: 0.2963512865 | L175: 1.813622782e-171 | M175: 7.955298552e-171 | N175: -2.30990073e-171 | O175: 2.654229476e-171 | P175: -2.30990073e-171 | Q175: 2.654229476e-171 | R175: 0 | T175: 1.15281318e-196 | U175: 3.509386541e-196 | W175: 58
A176: 175 | B176: 0 | C176: 3.522082511e-197 | D176: 1.653040299e-195 | E176: 0 | F176: -2 | G176: 1.28037037 | H176: -4.233007639e-195 | I176: 9.019140179e-197 | J176: 0.3164332575 | K176: 0.2963512865 | L176: 1.559664651e-170 | M176: 1.053369775e-170 | N176: 2.961090499e-172 | O176: 8.110642979e-171 | P176: 2.961090499e-172 | Q176: 8.110642979e-171 | R176: 0 | T176: 3.522082511e-197 | U176: 1.653040299e-195 | W176: 58.33333333
A177: 176 | B177: 0 | C177: -2.003108563e-195 | D177: 7.105404242e-195 | E177: 0 | F177: -2 | G177: 1.28037037 | H177: -1.819509812e-194 | I177: -5.129441706e-195 | J177: 0.3164332575 | K177: 0.2963512865 | L177: 4.286670474e-170 | M177: -6.857387123e-171 | N177: 1.328674578e-170 | O177: 1.318792723e-170 | P177: 1.328674578e-170 | Q177: 1.318792723e-170 | R177: 0 | T177: -2.003108563e-195 | U177: 7.105404242e-195 | W177: 58.66666667
A178: 177 | B178: 0 | C178: -1.776673295e-194 | D178: 2.766570534e-194 | E178: 0 | F178: -2 | G178: 1.28037037 | H178: -7.084469879e-194 | I178: -4.549599688e-194 | J178: 0.3164332575 | K178: 0.2963512865 | L178: 6.135676767e-170 | M178: -7.913373062e-170 | N178: 4.316281379e-170 | O178: 1.253255856e-171 | P178: 4.316281379e-170 | Q178: 1.253255856e-171 | R178: 0 | T178: -1.776673295e-194 | U178: 2.766570534e-194 | W178: 59
A179: 178 | B179: 0 | C179: -1.113588361e-193 | D179: 9.453021052e-194 | E179: 0 | F179: -2 | G179: 1.28037037 | H179: -2.420673613e-193 | I179: -2.851611084e-193 | J179: 0.3164332575 | K179: 0.2963512865 | L179: -2.147365338e-170 | M179: -2.299694615e-169 | N179: 7.464351345e-170 | O179: -6.594580339e-170 | P179: 7.464351345e-170 | Q179: -6.594580339e-170 | R179: 0 | T179: -1.113588361e-193 | U179: 9.453021052e-194 | W179: 59.33333333
A180: 179 | B180: 0 | C180: -5.942491928e-193 | D180: 2.566964479e-193 | E180: 0 | F180: -2 | G180: 1.28037037 | H180: -6.573330523e-193 | I180: -1.521718118e-192 | J180: 0.3164332575 | K180: 0.2963512865 | L180: -3.98750159e-169 | M180: -3.533109628e-169 | N180: 2.168916041e-170 | O180: -2.287162056e-169 | P180: 2.168916041e-170 | Q180: -2.287162056e-169 | R180: 0 | T180: -5.942491928e-193 | U180: 2.566964479e-193 | W180: 59.66666667
A181: 180 | B181: 0 | C181: -2.843653138e-192 | D181: 3.188828994e-193 | E181: 0 | F181: -2 | G181: 1.28037037 | H181: -8.165764321e-193 | I181: -7.281858442e-192 | J181: 0.3164332575 | K181: 0.2963512865 | L181: -1.228395553e-168 | M181: 3.389542464e-170 | N181: -3.241066455e-169 | O181: -4.192567662e-169 | P181: -3.241066455e-169 | Q181: -4.192567662e-169 | R181: 0 | T181: -2.843653138e-192 | U181: 3.188828994e-193 | W181: 60
A182: 181 | B182: 0 | C182: -1.240359556e-191 | D182: -2.313680057e-192 | E182: 0 | F182: -2 | G182: 1.28037037 | H182: 5.924734784e-192 | I182: -3.176239249e-191 | J182: 0.3164332575 | K182: 0.2963512865 | L182: -2.014642249e-168 | M182: 1.993903081e-168 | N182: -1.206706392e-168 | O182: -1.94820781e-169 | P182: -1.206706392e-168 | Q182: -1.94820781e-169 | R182: 0 | T182: -1.240359556e-191 | U182: -2.313680057e-192 | W182: 60.33333333
A183: 182 | B183: 0 | C183: -4.921319504e-191 | D183: -2.565215785e-191 | E183: 0 | F183: -2 | G183: 1.28037037 | H183: 6.568852569e-191 | I183: -1.260222335e-190 | J183: 0.3164332575 | K183: 0.2963512865 | L183: -2.479545195e-169 | M183: 6.53339898e-168 | N183: -2.338748895e-168 | O183: 1.574646315e-168 | P183: -2.338748895e-168 | Q183: 1.574646315e-168 | R183: 0 | T183: -4.921319504e-191 | U183: -2.565215785e-191 | W183: 60.66666667
A184: 183 | B184: 0 | C184: -1.736862338e-190 | D184: -1.706513784e-190 | E184: 0 | F184: -2 | G184: 1.28037037 | H184: 4.369939371e-190 | I184: -4.44765415e-190 | J184: 0.3164332575 | K184: 0.2963512865 | L184: 9.883903682e-168 | M184: 1.13903685e-167 | N184: -1.454660912e-168 | O184: 6.338578199e-168 | P184: -1.454660912e-168 | Q184: 6.338578199e-168 | R184: 0 | T184: -1.736862338e-190 | U184: -1.706513784e-190 | W184: 61
A185: 184 | B185: 0 | C185: -5.091451358e-190 | D185: -9.361494432e-190 | E185: 0 | F185: -2 | G185: 1.28037037 | H185: 2.397236019e-189 | I185: -1.303788692e-189 | J185: 0.3164332575 | K185: 0.2963512865 | L185: 3.459965222e-167 | M185: 3.5922806e-168 | N185: 7.545154788e-168 | O185: 1.296501481e-167 | P185: 7.545154788e-168 | Q185: 1.296501481e-167 | R185: 0 | T185: -5.091451358e-190 | U185: -9.361494432e-190 | W185: 61.33333333
A186: 185 | B186: 0 | C186: -9.335434899e-190 | D186: -4.557535546e-189 | E186: 0 | F186: -2 | G186: 1.28037037 | H186: 1.167066695e-188 | I186: -2.390562848e-189 | J186: 0.3164332575 | K186: 0.2963512865 | L186: 6.39148504e-167 | M186: -4.850617682e-167 | N186: 3.314499131e-167 | O186: 9.930858799e-168 | P186: 3.314499131e-167 | Q186: 9.930858799e-168 | R186: 0 | T186: -9.335434899e-190 | U186: -4.557535546e-189 | W186: 61.66666667
A187: 186 | B187: 0 | C187: 1.902422527e-189 | D187: -2.016914162e-188 | E187: 0 | F187: -2 | G187: 1.28037037 | H187: 5.164794265e-188 | I187: 4.871610871e-189 | J187: 0.3164332575 | K187: 0.2963512865 | L187: 3.112417699e-167 | M187: -1.824393149e-166 | N187: 7.146000518e-167 | O187: -3.554116201e-167 | P187: 7.146000518e-167 | Q187: -3.554116201e-167 | R187: 0 | T187: 1.902422527e-189 | U187: -2.016914162e-188 | W187: 62
A188: 187 | B188: 0 | C188: 3.346708069e-188 | D188: -8.138727703e-188 | E188: 0 | F188: -2 | G188: 1.28037037 | H188: 2.084117161e-187 | I188: 8.570051699e-188 | J188: 0.3164332575 | K188: 0.2963512865 | L188: -2.352563896e-166 | M188: -3.56222927e-166 | N188: 6.426916829e-167 | O188: -1.725084561e-166 | P188: 6.426916829e-167 | Q188: -1.725084561e-166 | R188: 0 | T188: 3.346708069e-188 | U188: -8.138727703e-188 | W188: 62.33333333
A189: 188 | B189: 0 | C189: 2.41596265e-187 | D189: -2.94991192e-187 | E189: 0 | F189: -2 | G189: 1.28037037 | H189: 7.553959635e-187 | I189: 6.186653985e-187 | J189: 0.3164332575 | K189: 0.2963512865 | L189: -9.577342373e-166 | M189: -2.287912284e-166 | N189: -1.637963845e-166 | O189: -3.917640891e-166 | P189: -1.637963845e-166 | Q189: -3.917640891e-166 | R189: 0 | T189: 2.41596265e-187 | U189: -2.94991192e-187 | W189: 62.66666667
A190: 189 | B190: 0 | C190: 1.370789498e-186 | D190: -9.148338094e-187 | E190: 0 | F190: -2 | G190: 1.28037037 | H190: 2.342652207e-186 | I190: 3.510236515e-186 | J190: 0.3164332575 | K190: 0.2963512865 | L190: -1.973149595e-165 | M190: 1.12489501e-165 | N190: -8.93465069e-166 | O190: -4.012996845e-166 | P190: -8.93465069e-166 | Q190: -4.012996845e-166 | R190: 0 | T190: 1.370789498e-186 | U190: -9.148338094e-187 | W190: 63
A191: 190 | B191: 0 | C191: 6.803603083e-186 | D191: -2.048143345e-186 | E191: 0 | F191: -2 | G191: 1.28037037 | H191: 5.244764107e-186 | I191: 1.74222636e-185 | J191: 0.3164332575 | K191: 0.2963512865 | L191: -1.548282711e-165 | M191: 5.004943527e-165 | N191: -2.136945979e-165 | O191: 7.331309213e-166 | P191: -2.136945979e-165 | Q191: 7.331309213e-166 | R191: 0 | T191: 6.803603083e-186 | U191: -2.048143345e-186 | W191: 63.33333333
A192: 191 | B192: 0 | C192: 3.055628943e-185 | D192: 1.123474159e-187 | E192: 0 | F192: -2 | G192: 1.28037037 | H192: -2.87692605e-187 | I192: 7.824673523e-185 | J192: 0.3164332575 | K192: 0.2963512865 | L192: 5.284765569e-165 | M192: 1.086736735e-164 | N192: -2.44174778e-165 | O192: 4.603643842e-165 | P192: -2.44174778e-165 | Q192: 4.603643842e-165 | R192: 0 | T192: 3.055628943e-185 | U192: 1.123474159e-187 | W192: 63.66666667
A193: 192 | B193: 0 | C193: 1.252371502e-184 | D193: 3.870777435e-185 | E193: 0 | F193: -2 | G193: 1.28037037 | H193: -9.912057476e-185 | I193: 3.206998728e-184 | J193: 0.3164332575 | K193: 0.2963512865 | L193: 2.603206901e-164 | M193: 9.963333928e-165 | N193: 3.14781959e-165 | O193: 1.160049827e-164 | P193: 3.14781959e-165 | Q193: 1.160049827e-164 | R193: 0 | T193: 1.252371502e-184 | U193: 3.870777435e-185 | W193: 64
A194: 193 | B194: 0 | C194: 4.642578571e-184 | D194: 3.14793999e-184 | E194: 0 | F194: -2 | G194: 1.28037037 | H194: -8.061058183e-184 | I194: 1.188844009e-183 | J194: 0.3164332575 | K194: 0.2963512865 | L194: 5.953613e-164 | M194: -2.427138934e-164 | N194: 2.359032123e-164 | O194: 1.456697777e-164 | P194: 2.359032123e-164 | Q194: 1.456697777e-164 | R194: 0 | T194: 4.642578571e-184 | U194: 3.14793999e-184 | W194: 64.33333333
A195: 194 | B195: 0 | C195: 1.503372748e-183 | D195: 1.863417892e-183 | E195: =C195^2+D195^2 -> 0 | F195: =-2-0.2626*B195/9 -> -2 | G195: =3.457/2.7 -> 1.28037037 | H195: =-2*G195*D195 -> -4.771730113e-183 | I195: =2*G195*C195 -> 3.849747844e-183 | J195: =(-F195-J196)/((F195+J196)^2+(G195+K196)^2) -> 0.3164332575 | K195: =(G195+K196)/((F195+J196)^2+(G195+K196)^2) -> 0.2963512865 | L195: =J196*(L196-H196)-K196*(M196-I196) -> 6.196382324e-164 | M195: =J196*(M196-I196)+K196*(L196-H196) -> -1.347344094e-163 | N195: 6.268394959e-164 | O195: -1.267089106e-164 | P195: 6.268394959e-164 | Q195: -1.267089106e-164 | R195: 0 | T195: 1.503372748e-183 | U195: 1.863417892e-183 | W195: 64.66666667
A196: =A195+1 -> 195 | B196: 0 | C196: 3.8075274e-183 | D196: 9.456484035e-183 | E196: 0 | F196: -2 | G196: 1.28037037 | H196: -2.421560393e-182 | I196: 9.750090535e-183 | J196: 0.3164332575 | K196: 0.2963512865 | L196: -1.081184292e-163 | M196: -3.245340728e-163 | N196: =J196*N195-K196*O195+L195 -> 8.555414447e-164 | O196: =J196*O195+K196*N195+M195 -> -1.201674317e-163 | P196: =N196-C196 -> 8.555414447e-164 | Q196: =O196-D196 -> -1.201674317e-163 | R196: =P196^2+Q196^2 -> 0 | T196: =(EXP(-(($A196-$Z$4)^2/$Z$3))*COS($Z$2*$A196/3)) -> 3.8075274e-183 | U196: =(EXP(-(($A196-$Z$4)^2/$Z$3))*SIN($Z$2*$A196/3)) -> 9.456484035e-183 | W196: =A196/3 -> 65
A197: 196 | B197: 0 | C197: 3.748750068e-183 | D197: 4.313391474e-182 | E197: 0 | F197: -2 | G197: 1.28037037 | H197: -1.104547728e-181 | I197: 9.599577026e-183 | J197: 0.3164332575 | K197: 0.2963512865 | L197: -6.937244927e-163 | M197: -3.75902103e-163 | N197: -4.543447962e-164 | O197: -3.372049639e-163 | P197: -4.543447962e-164 | Q197: -3.372049639e-163 | R197: 0 | T197: 3.748750068e-183 | U197: 4.313391474e-182 | W197: 65.33333333
A198: 197 | B198: 0 | C198: -3.812862233e-182 | D198: 1.794213637e-181 | E198: 0 | F198: -2 | G198: 1.28037037 | H198: -4.594515958e-181 | I198: -9.76375166e-182 | J198: 0.3164332575 | K198: 0.2963512865 | L198: -1.760624471e-162 | M198: 4.609541525e-163 | N198: -6.081703482e-163 | O198: -4.960695346e-163 | P198: -6.081703482e-163 | Q198: -4.960695346e-163 | R198: 0 | T198: -3.812862233e-182 | U198: 1.794213637e-181 | W198: 65.66666667
A199: 198 | B199: 0 | C199: -3.753543213e-181 | D199: 6.782221122e-181 | E199: 0 | F199: -2 | G199: 1.28037037 | H199: -1.736750994e-180 | I199: -9.611851028e-181 | J199: 0.3164332575 | K199: 0.2963512865 | L199: -2.23733241e-162 | M199: 3.552061814e-162 | N199: -1.806058951e-162 | O199: 1.237491886e-163 | P199: -1.806058951e-162 | Q199: 1.237491886e-163 | R199: 0 | T199: -3.753543213e-181 | U199: 6.782221122e-181 | W199: 66
A200: 199 | B200: 0 | C200: -2.347618406e-180 | D200: 2.272912626e-180 | E200: 0 | F200: -2 | G200: 1.28037037 | H200: -5.820339962e-180 | I200: -6.011642096e-180 | J200: 0.3164332575 | K200: 0.2963512865 | L200: 1.833914351e-162 | M200: 9.507783602e-162 | N200: -2.845502758e-162 | O200: 3.055992279e-162 | P200: -2.845502758e-162 | Q200: 3.055992279e-162 | R200: 0 | T200: -2.347618406e-180 | U200: 2.272912626e-180 | W200: 66.33333333
... 1001 more rows

Sheet Sheet2
I14: There is a potental step at x = 300 Å.
I16: step size (eV): | N16: =Sheet1!Z5 -> 3
A17: <kin. Energy> (eV): | F17: =Sheet1!Y2 -> 3
A19: standard deviation: (Å) | F19: =Sheet1!Y3 -> 20
A21: initial position: (Å) | F21: =Sheet1!Y4 -> 258
A23: 1-dimensional problem:
A24: A particle with mass equal to the electron mass and zero potential energy
A25: is confined to a 200 Å wide region.
A26: The initial state is a Gaussian wave packet, EXP(-(x - x0)2/2σ2)exp(ik0x)
A27: k0 = (2mE)1/2/ħ
A28: Pick initial values, click Reset, then Run. | F28: The program runs for 30 s.
A30: Data are on sheet 1.
